{"text_format":"1","workbook":"xlsx","n_sheets":2,"sheets":["Statistics","Industry Analysis"],"not_rendered":{"charts":0,"images":0,"macros":1,"external_links":0,"defined_names":159,"comments":1,"pivot_tables":0},"unopened":[],"bounds":{"document_bytes":16777216,"sheet_cells":100000,"rows_first":2000,"rows_last":500,"rows_between":2000,"halvings":0,"cell_chars":16384,"cell_head_chars":4096},"cells_cut":0,"cells_raw":0,"read":"whole","date_system":"1900"}

{"sheet":"Statistics","index":0,"n_rows":75,"n_cols":195,"rows_kept":75,"cut":false,"hidden":true,"merged":[]}
[]
[]
[]
[]
[null,null,null,"Name Number",null,null,null,null,"Average profitability & expense percentages for U.S. small businesses*",null,null,null,"Average profitability & expense percentages for U.S. small businesses*",null,null,null,"Average profitability & expense percentages for U.S. small businesses*",null,null,null,"Average profitability & expense percentages for U.S. small businesses*",null,null,null,"Average profitability & expense percentages for U.S. small businesses*",null,null,null,"Average profitability & expense percentages for U.S. small businesses*",null,null,null,"Average profitability & expense percentages for U.S. small businesses*",null,null,null,"Average profitability & expense percentages for U.S. small businesses*",null,null,null,"Average profitability & expense percentages for U.S. small businesses*",null,null,null,"Average profitability & expense percentages for U.S. small businesses*",null,null,null,"Average profitability & expense percentages for U.S. small businesses*",null,null,null,"Average profitability & expense percentages for U.S. small businesses*",null,null,null,"Average profitability & expense percentages for U.S. small businesses*",null,null,null,"Average profitability & expense percentages for U.S. small businesses*",null,null,null,"Average profitability & expense percentages for U.S. small businesses*",null,null,null,"Average profitability & expense percentages for U.S. small businesses*",null,null,null,"Average profitability & expense percentages for U.S. small businesses*",null,null,null,"Average profitability & expense percentages for U.S. small businesses*",null,null,null,"Average profitability & expense percentages for U.S. small businesses*",null,null,null,"Average profitability & expense percentages for U.S. small businesses*",null,null,null,"Average profitability & expense percentages for U.S. small businesses*",null,null,null,"Average profitability & expense percentages for U.S. small businesses*",null,null,null,"Average profitability & expense percentages for U.S. small businesses*",null,null,null,"Average profitability & expense percentages for U.S. small businesses*",null,null,null,"Average profitability & expense percentages for U.S. small businesses*",null,null,null,"Average profitability & expense percentages for U.S. small businesses*",null,null,null,"Average profitability & expense percentages for U.S. small businesses*",null,null,null,"Average profitability & expense percentages for U.S. small businesses*",null,null,null,"Average profitability & expense percentages for U.S. small businesses*",null,null,null,"Average profitability & expense percentages for U.S. small businesses*",null,null,null,"Average profitability & expense percentages for U.S. small businesses*",null,null,null,"Average profitability & expense percentages for U.S. small businesses*",null,null,null,"Average profitability & expense percentages for U.S. small businesses*",null,null,null,"Average profitability & expense percentages for U.S. small businesses*",null,null,null,"Average profitability & expense percentages for U.S. small businesses*",null,null,null,"Average profitability & expense percentages for U.S. small businesses*",null,null,null,"Average profitability & expense percentages for U.S. small businesses*",null,null,null,"Average profitability & expense percentages for U.S. small businesses*",null,null,null,"Average profitability & expense percentages for U.S. small businesses*",null,null,null,"Average profitability & expense percentages for U.S. small businesses*",null,null,null,"Average profitability & expense percentages for U.S. small businesses*",null,null,null,"Average profitability & expense percentages for U.S. small businesses*",null,null,null,"Average profitability & expense percentages for U.S. small businesses*",null,null,null,"Average profitability & expense percentages for U.S. small businesses*",null,null,null,"Average profitability & expense percentages for U.S. small businesses*",null,null,null,"Average profitability & expense percentages for U.S. small businesses*",null,null,null,"Average profitability & expense percentages for U.S. small businesses*"]
[null,null,1,1,")","Construction - Nonresidential Buildings",null,null,"Construction - Nonresidential Buildings","$","%",null,"Construction - Heavy Construction","$","%",null,"Construction - Residential Buildings","$","%",null,"Construction - Special Trade Contractors","$","%",null,"Health Services - Chiropractors","$","%",null,"Health Services - Day Care","$","%",null,"Health Services - Dentists","$","%",null,"Health Services - Home Health Care Services","$","%",null,"Health Services - Mental Health & Social Therapists","$","%",null,"Health Services - Nursing & Residential Care","$","%",null,"Health Services - Optometrists","$","%",null,"Health Services - Physicians","$","%",null,"Health Services - Podiatrists","$","%",null,"Health Services - Psychiatrists","$","%",null,"Health Services - Social Assistance","$","%",null,"Manufacturing - Apparel","$","%",null,"Manufacturing - Fabricated Metal Products","$","%",null,"Manufacturing - Food Products","$","%",null,"Manufacturing - Furniture & Related Products","$","%",null,"Manufacturing - Machinery","$","%",null,"Manufacturing - Printing & Related Activities","$","%",null,"Manufacturing - Wood Products","$","%",null,"Other Services - Auto Oil Change, Car Washes & Related Services","$","%",null,"Other Services - Automotive Body Shops","$","%",null,"Other Services - Automotive Mechanical & Electrical Repair","$","%",null,"Other Services - Hotels & Inns","$","%",null,"Other Services - Miscellaneous Repair Services","$","%",null,"Other Services - Personal & Laundry Services","$","%",null,"Retailing - Building Materials & Garden Supplies","$","%",null,"Retailing - Catalog & Multi-level Marketing","$","%",null,"Retailing - Clothing & Accessories","$","%",null,"Retailing - Electronics & Appliances","$","%",null,"Retailing - Furniture & Home Furnishings","$","%",null,"Retailing - Gasoline Stations","$","%",null,"Retailing - General Merchandise","$","%",null,"Retailing - Grocery & Beverage Stores","$","%",null,"Retailing - Health & Personal Care Stores","$","%",null,"Retailing - Motor Vehicles & Parts","$","%",null,"Retailing - Other Retail Products","$","%",null,"Retailing - Restaurants & Drinking Places","$","%",null,"Retailing - Sporting Goods, Hobbies, Books & Music","$","%",null,"Services - Administrative & Personnel Support","$","%",null,"Services - Advertising & Related Services","$","%",null,"Services - Architectural Services","$","%",null,"Services - Certified Public Accountants","$","%",null,"Services - Computer Programming & Systems Design","$","%",null,"Services - Drafting & Related Services","$","%"]
[null,null,2,2,")","Construction - Heavy Construction"]
[null,null,3,3,")","Construction - Residential Buildings",null,null,"Total Revenue (Sales)",1000000,1,null,"Total Revenue (Sales)",1000000,1,null,"Total Revenue (Sales)",1000000,1,null,"Total Revenue (Sales)",1000000,1,null,"Total Revenue (Sales)",1000000,1,null,"Total Revenue (Sales)",1000000,1,null,"Total Revenue (Sales)",1000000,1,null,"Total Revenue (Sales)",1000000,1,null,"Total Revenue (Sales)",1000000,1,null,"Total Revenue (Sales)",1000000,1,null,"Total Revenue (Sales)",1000000,1,null,"Total Revenue (Sales)",1000000,1,null,"Total Revenue (Sales)",1000000,1,null,"Total Revenue (Sales)",1000000,1,null,"Total Revenue (Sales)",1000000,1,null,"Total Revenue (Sales)",1000000,1,null,"Total Revenue (Sales)",1000000,1,null,"Total Revenue (Sales)",1000000,1,null,"Total Revenue (Sales)",1000000,1,null,"Total Revenue (Sales)",1000000,1,null,"Total Revenue (Sales)",1000000,1,null,"Total Revenue (Sales)",1000000,1,null,"Total Revenue (Sales)",1000000,1,null,"Total Revenue (Sales)",1000000,1,null,"Total Revenue (Sales)",1000000,1,null,"Total Revenue (Sales)",1000000,1,null,"Total Revenue (Sales)",1000000,1,null,"Total Revenue (Sales)",1000000,1,null,"Total Revenue (Sales)",1000000,1,null,"Total Revenue (Sales)",1000000,1,null,"Total Revenue (Sales)",1000000,1,null,"Total Revenue (Sales)",1000000,1,null,"Total Revenue (Sales)",1000000,1,null,"Total Revenue (Sales)",1000000,1,null,"Total Revenue (Sales)",1000000,1,null,"Total Revenue (Sales)",1000000,1,null,"Total Revenue (Sales)",1000000,1,null,"Total Revenue (Sales)",1000000,1,null,"Total Revenue (Sales)",1000000,1,null,"Total Revenue (Sales)",1000000,1,null,"Total Revenue (Sales)",1000000,1,null,"Total Revenue (Sales)",1000000,1,null,"Total Revenue (Sales)",1000000,1,null,"Total Revenue (Sales)",1000000,1,null,"Total Revenue (Sales)",1000000,1,null,"Total Revenue (Sales)",1000000,1,null,"Total Revenue (Sales)",1000000,1]
[null,null,4,4,")","Construction - Special Trade Contractors",null,null,"Total Expenses as % of Revenue",842124,0.84199999999999997,null,"Total Expenses as % of Revenue",858109,0.85799999999999998,null,"Total Expenses as % of Revenue",838224,0.83799999999999997,null,"Total Expenses as % of Revenue",757353,0.75700000000000001,null,"Total Expenses as % of Revenue",584079,0.58399999999999996,null,"Total Expenses as % of Revenue",539842,0.54,null,"Total Expenses as % of Revenue",622080,0.622,null,"Total Expenses as % of Revenue",498998,0.499,null,"Total Expenses as % of Revenue",457618,0.45800000000000002,null,"Total Expenses as % of Revenue",671897,0.67200000000000004,null,"Total Expenses as % of Revenue",731652,0.73199999999999998,null,"Total Expenses as % of Revenue",437726,0.438,null,"Total Expenses as % of Revenue",588608,0.58899999999999997,null,"Total Expenses as % of Revenue",405253,0.40500000000000003,null,"Total Expenses as % of Revenue",428987,0.42899999999999999,null,"Total Expenses as % of Revenue",875119,0.875,null,"Total Expenses as % of Revenue",813120,0.81299999999999994,null,"Total Expenses as % of Revenue",847921,0.84799999999999998,null,"Total Expenses as % of Revenue",781491,0.78100000000000003,null,"Total Expenses as % of Revenue",761718,0.76200000000000001,null,"Total Expenses as % of Revenue",817641,0.81799999999999995,null,"Total Expenses as % of Revenue",902072,0.90200000000000002,null,"Total Expenses as % of Revenue",836264,0.83599999999999997,null,"Total Expenses as % of Revenue",839785,0.84,null,"Total Expenses as % of Revenue",838439,0.83799999999999997,null,"Total Expenses as % of Revenue",843426,0.84299999999999997,null,"Total Expenses as % of Revenue",732158,0.73199999999999998,null,"Total Expenses as % of Revenue",636208,0.63600000000000001,null,"Total Expenses as % of Revenue",896050,0.89600000000000002,null,"Total Expenses as % of Revenue",761829,0.76200000000000001,null,"Total Expenses as % of Revenue",863056,0.86299999999999999,null,"Total Expenses as % of Revenue",876746,0.877,null,"Total Expenses as % of Revenue",868730,0.86899999999999999,null,"Total Expenses as % of Revenue",967197,0.96699999999999997,null,"Total Expenses as % of Revenue",898081,0.89800000000000002,null,"Total Expenses as % of Revenue",939532,0.94,null,"Total Expenses as % of Revenue",842782,0.84299999999999997,null,"Total Expenses as % of Revenue",936048,0.93600000000000005,null,"Total Expenses as % of Revenue",865438,0.86499999999999999,null,"Total Expenses as % of Revenue",891204,0.89100000000000001,null,"Total Expenses as % of Revenue",875434,0.875,null,"Total Expenses as % of Revenue",645234,0.64500000000000002,null,"Total Expenses as % of Revenue",693731,0.69399999999999995,null,"Total Expenses as % of Revenue",670811,0.67100000000000004,null,"Total Expenses as % of Revenue",545758,0.54600000000000004,null,"Total Expenses as % of Revenue",507771,0.50800000000000001,null,"Total Expenses as % of Revenue",392262,0.39200000000000002]
[null,null,5,5,")","Health Services - Chiropractors",null,null,"Net Income to Owner as % of Revenue",157876,0.158,null,"Net Income to Owner as % of Revenue",141891,0.14199999999999999,null,"Net Income to Owner as % of Revenue",161776,0.16200000000000001,null,"Net Income to Owner as % of Revenue",242647,0.24299999999999999,null,"Net Income to Owner as % of Revenue",415921,0.41599999999999998,null,"Net Income to Owner as % of Revenue",460158,0.46,null,"Net Income to Owner as % of Revenue",377920,0.378,null,"Net Income to Owner as % of Revenue",501002,0.501,null,"Net Income to Owner as % of Revenue",542382,0.54200000000000004,null,"Net Income to Owner as % of Revenue",328103,0.32800000000000001,null,"Net Income to Owner as % of Revenue",268348,0.26800000000000002,null,"Net Income to Owner as % of Revenue",562274,0.56200000000000006,null,"Net Income to Owner as % of Revenue",411392,0.41099999999999998,null,"Net Income to Owner as % of Revenue",594747,0.59499999999999997,null,"Net Income to Owner as % of Revenue",571013,0.57099999999999995,null,"Net Income to Owner as % of Revenue",124881,0.125,null,"Net Income to Owner as % of Revenue",186880,0.187,null,"Net Income to Owner as % of Revenue",152079,0.152,null,"Net Income to Owner as % of Revenue",218509,0.219,null,"Net Income to Owner as % of Revenue",238282,0.23799999999999999,null,"Net Income to Owner as % of Revenue",182359,0.182,null,"Net Income to Owner as % of Revenue",97928,9.8000000000000004E-2,null,"Net Income to Owner as % of Revenue",163736,0.16400000000000001,null,"Net Income to Owner as % of Revenue",160215,0.16,null,"Net Income to Owner as % of Revenue",161561,0.16200000000000001,null,"Net Income to Owner as % of Revenue",156574,0.157,null,"Net Income to Owner as % of Revenue",267842,0.26800000000000002,null,"Net Income to Owner as % of Revenue",363792,0.36399999999999999,null,"Net Income to Owner as % of Revenue",103950,0.104,null,"Net Income to Owner as % of Revenue",238171,0.23799999999999999,null,"Net Income to Owner as % of Revenue",136944,0.13700000000000001,null,"Net Income to Owner as % of Revenue",123254,0.123,null,"Net Income to Owner as % of Revenue",131270,0.13100000000000001,null,"Net Income to Owner as % of Revenue",32803,3.3000000000000002E-2,null,"Net Income to Owner as % of Revenue",101919,0.10199999999999999,null,"Net Income to Owner as % of Revenue",60468,0.06,null,"Net Income to Owner as % of Revenue",157218,0.157,null,"Net Income to Owner as % of Revenue",63952,6.4000000000000001E-2,null,"Net Income to Owner as % of Revenue",134562,0.13500000000000001,null,"Net Income to Owner as % of Revenue",108796,0.109,null,"Net Income to Owner as % of Revenue",124566,0.125,null,"Net Income to Owner as % of Revenue",354766,0.35499999999999998,null,"Net Income to Owner as % of Revenue",306269,0.30599999999999999,null,"Net Income to Owner as % of Revenue",329189,0.32900000000000001,null,"Net Income to Owner as % of Revenue",454242,0.45400000000000001,null,"Net Income to Owner as % of Revenue",492229,0.49199999999999999,null,"Net Income to Owner as % of Revenue",607738,0.60799999999999998]
[null,null,6,6,")","Health Services - Day Care"]
[null,null,7,7,")","Health Services - Dentists",null,null,"Detail of Expenses (as % of Revenue)",null,null,null,"Detail of Expenses (as % of Revenue)",null,null,null,"Detail of Expenses (as % of Revenue)",null,null,null,"Detail of Expenses (as % of Revenue)",null,null,null,"Detail of Expenses (as % of Revenue)",null,null,null,"Detail of Expenses (as % of Revenue)",null,null,null,"Detail of Expenses (as % of Revenue)",null,null,null,"Detail of Expenses (as % of Revenue)",null,null,null,"Detail of Expenses (as % of Revenue)",null,null,null,"Detail of Expenses (as % of Revenue)",null,null,null,"Detail of Expenses (as % of Revenue)",null,null,null,"Detail of Expenses (as % of Revenue)",null,null,null,"Detail of Expenses (as % of Revenue)",null,null,null,"Detail of Expenses (as % of Revenue)",null,null,null,"Detail of Expenses (as % of Revenue)",null,null,null,"Detail of Expenses (as % of Revenue)",null,null,null,"Detail of Expenses (as % of Revenue)",null,null,null,"Detail of Expenses (as % of Revenue)",null,null,null,"Detail of Expenses (as % of Revenue)",null,null,null,"Detail of Expenses (as % of Revenue)",null,null,null,"Detail of Expenses (as % of Revenue)",null,null,null,"Detail of Expenses (as % of Revenue)",null,null,null,"Detail of Expenses (as % of Revenue)",null,null,null,"Detail of Expenses (as % of Revenue)",null,null,null,"Detail of Expenses (as % of Revenue)",null,null,null,"Detail of Expenses (as % of Revenue)",null,null,null,"Detail of Expenses (as % of Revenue)",null,null,null,"Detail of Expenses (as % of Revenue)",null,null,null,"Detail of Expenses (as % of Revenue)",null,null,null,"Detail of Expenses (as % of Revenue)",null,null,null,"Detail of Expenses (as % of Revenue)",null,null,null,"Detail of Expenses (as % of Revenue)",null,null,null,"Detail of Expenses (as % of Revenue)",null,null,null,"Detail of Expenses (as % of Revenue)",null,null,null,"Detail of Expenses (as % of Revenue)",null,null,null,"Detail of Expenses (as % of Revenue)",null,null,null,"Detail of Expenses (as % of Revenue)",null,null,null,"Detail of Expenses (as % of Revenue)",null,null,null,"Detail of Expenses (as % of Revenue)",null,null,null,"Detail of Expenses (as % of Revenue)",null,null,null,"Detail of Expenses (as % of Revenue)",null,null,null,"Detail of Expenses (as % of Revenue)",null,null,null,"Detail of Expenses (as % of Revenue)",null,null,null,"Detail of Expenses (as % of Revenue)",null,null,null,"Detail of Expenses (as % of Revenue)",null,null,null,"Detail of Expenses (as % of Revenue)",null,null,null,"Detail of Expenses (as % of Revenue)"]
[null,null,8,8,")","Health Services - Home Health Care Services",null,null,"Cost of Goods Sold",582548,0.58299999999999996,null,"Cost of Goods Sold",371395,0.371,null,"Cost of Goods Sold",605197,0.60499999999999998,null,"Cost of Goods Sold",387044,0.38700000000000001,null,"Cost of Goods Sold",41465,4.1000000000000002E-2,null,"Cost of Goods Sold",20479,0.02,null,"Cost of Goods Sold",70838,7.0999999999999994E-2,null,"Cost of Goods Sold",25594,2.5999999999999999E-2,null,"Cost of Goods Sold",37620,3.7999999999999999E-2,null,"Cost of Goods Sold",62586,6.3E-2,null,"Cost of Goods Sold",269718,0.27,null,"Cost of Goods Sold",24991,2.5000000000000001E-2,null,"Cost of Goods Sold",15480,1.4999999999999999E-2,null,"Cost of Goods Sold",18798,1.9E-2,null,"Cost of Goods Sold",34249,3.4000000000000002E-2,null,"Cost of Goods Sold",448003,0.44800000000000001,null,"Cost of Goods Sold",442720,0.443,null,"Cost of Goods Sold",629198,0.629,null,"Cost of Goods Sold",473348,0.47299999999999998,null,"Cost of Goods Sold",444141,0.44400000000000001,null,"Cost of Goods Sold",417860,0.41799999999999998,null,"Cost of Goods Sold",599631,0.6,null,"Cost of Goods Sold",358433,0.35799999999999998,null,"Cost of Goods Sold",387057,0.38700000000000001,null,"Cost of Goods Sold",437294,0.437,null,"Cost of Goods Sold",123256,0.123,null,"Cost of Goods Sold",347620,0.34799999999999998,null,"Cost of Goods Sold",138251,0.13800000000000001,null,"Cost of Goods Sold",617793,0.61799999999999999,null,"Cost of Goods Sold",458434,0.45800000000000002,null,"Cost of Goods Sold",587397,0.58699999999999997,null,"Cost of Goods Sold",626157,0.626,null,"Cost of Goods Sold",536568,0.53700000000000003,null,"Cost of Goods Sold",830674,0.83099999999999996,null,"Cost of Goods Sold",651980,0.65200000000000002,null,"Cost of Goods Sold",744101,0.74399999999999999,null,"Cost of Goods Sold",615659,0.61599999999999999,null,"Cost of Goods Sold",795088,0.79500000000000004,null,"Cost of Goods Sold",539950,0.54,null,"Cost of Goods Sold",424906,0.42499999999999999,null,"Cost of Goods Sold",599663,0.6,null,"Cost of Goods Sold",204548,0.20499999999999999,null,"Cost of Goods Sold",342589,0.34300000000000003,null,"Cost of Goods Sold",186454,0.186,null,"Cost of Goods Sold",8410,8.0000000000000002E-3,null,"Cost of Goods Sold",245125,0.245,null,"Cost of Goods Sold",8678,8.9999999999999993E-3]
[null,null,9,9,")","Health Services - Mental Health & Social Therapists",null,null,"Salaries & Wages",36821,3.6999999999999998E-2,null,"Salaries & Wages",68950,6.9000000000000006E-2,null,"Salaries & Wages",33944,3.4000000000000002E-2,null,"Salaries & Wages",64022,6.4000000000000001E-2,null,"Salaries & Wages",113445,0.113,null,"Salaries & Wages",42201,4.2000000000000003E-2,null,"Salaries & Wages",196924,0.19700000000000001,null,"Salaries & Wages",73514,7.3999999999999996E-2,null,"Salaries & Wages",45262,4.4999999999999998E-2,null,"Salaries & Wages",159866,0.16,null,"Salaries & Wages",132002,0.13200000000000001,null,"Salaries & Wages",110967,0.111,null,"Salaries & Wages",115831,0.11600000000000001,null,"Salaries & Wages",78120,7.8E-2,null,"Salaries & Wages",12552,1.2999999999999999E-2,null,"Salaries & Wages",106184,0.106,null,"Salaries & Wages",68280,6.8000000000000005E-2,null,"Salaries & Wages",46165,4.5999999999999999E-2,null,"Salaries & Wages",40567,4.1000000000000002E-2,null,"Salaries & Wages",86402,8.5999999999999993E-2,null,"Salaries & Wages",92153,9.1999999999999998E-2,null,"Salaries & Wages",42857,4.2999999999999997E-2,null,"Salaries & Wages",100131,0.1,null,"Salaries & Wages",109163,0.109,null,"Salaries & Wages",91526,9.1999999999999998E-2,null,"Salaries & Wages",106923,0.107,null,"Salaries & Wages",41872,4.2000000000000003E-2,null,"Salaries & Wages",78921,7.9000000000000001E-2,null,"Salaries & Wages",64950,6.5000000000000002E-2,null,"Salaries & Wages",15024,1.4999999999999999E-2,null,"Salaries & Wages",62903,6.3E-2,null,"Salaries & Wages",73321,7.2999999999999995E-2,null,"Salaries & Wages",64108,6.4000000000000001E-2,null,"Salaries & Wages",44876,4.4999999999999998E-2,null,"Salaries & Wages",53144,5.2999999999999999E-2,null,"Salaries & Wages",49325,4.9000000000000002E-2,null,"Salaries & Wages",52760,5.2999999999999999E-2,null,"Salaries & Wages",26054,2.5999999999999999E-2,null,"Salaries & Wages",64332,6.4000000000000001E-2,null,"Salaries & Wages",154286,0.154,null,"Salaries & Wages",44193,4.3999999999999997E-2,null,"Salaries & Wages",72315,7.1999999999999995E-2,null,"Salaries & Wages",19245,1.9E-2,null,"Salaries & Wages",110890,0.111,null,"Salaries & Wages",145545,0.14599999999999999,null,"Salaries & Wages",26617,2.7E-2,null,"Salaries & Wages",116532,0.11700000000000001]
[null,null,10,10,")","Health Services - Nursing & Residential Care",null,null,"Advertising",3115,3.0000000000000001E-3,null,"Advertising",2084,2E-3,null,"Advertising",2489,2E-3,null,"Advertising",5377,5.0000000000000001E-3,null,"Advertising",24069,2.4E-2,null,"Advertising",2686,3.0000000000000001E-3,null,"Advertising",8915,8.9999999999999993E-3,null,"Advertising",2007,2E-3,null,"Advertising",6163,6.0000000000000001E-3,null,"Advertising",3509,4.0000000000000001E-3,null,"Advertising",14648,1.4999999999999999E-2,null,"Advertising",4422,4.0000000000000001E-3,null,"Advertising",13211,1.2999999999999999E-2,null,"Advertising",3718,4.0000000000000001E-3,null,"Advertising",7161,7.0000000000000001E-3,null,"Advertising",8467,8.0000000000000002E-3,null,"Advertising",6638,7.0000000000000001E-3,null,"Advertising",4096,4.0000000000000001E-3,null,"Advertising",4070,4.0000000000000001E-3,null,"Advertising",2906,3.0000000000000001E-3,null,"Advertising",10741,1.0999999999999999E-2,null,"Advertising",7724,8.0000000000000002E-3,null,"Advertising",13176,1.2999999999999999E-2,null,"Advertising",9303,8.9999999999999993E-3,null,"Advertising",10409,0.01,null,"Advertising",20014,0.02,null,"Advertising",12371,1.2E-2,null,"Advertising",14035,1.4E-2,null,"Advertising",12386,1.2E-2,null,"Advertising",11043,1.0999999999999999E-2,null,"Advertising",13808,1.4E-2,null,"Advertising",19358,1.9E-2,null,"Advertising",23708,2.4E-2,null,"Advertising",1935,2E-3,null,"Advertising",7167,7.0000000000000001E-3,null,"Advertising",3530,4.0000000000000001E-3,null,"Advertising",8964,8.9999999999999993E-3,null,"Advertising",7286,7.0000000000000001E-3,null,"Advertising",15148,1.4999999999999999E-2,null,"Advertising",16200,1.6E-2,null,"Advertising",12762,1.2999999999999999E-2,null,"Advertising",11241,1.0999999999999999E-2,null,"Advertising",27009,2.7E-2,null,"Advertising",5311,5.0000000000000001E-3,null,"Advertising",7088,7.0000000000000001E-3,null,"Advertising",4660,5.0000000000000001E-3,null,"Advertising",2447,2E-3]
[null,null,11,11,")","Health Services - Optometrists",null,null,"Auto & Truck Expenses",36033,3.5999999999999997E-2,null,"Auto & Truck Expenses",46749,4.7E-2,null,"Auto & Truck Expenses",29456,2.9000000000000001E-2,null,"Auto & Truck Expenses",56403,5.6000000000000001E-2,null,"Auto & Truck Expenses",15111,1.4999999999999999E-2,null,"Auto & Truck Expenses",33262,3.3000000000000002E-2,null,"Auto & Truck Expenses",5028,5.0000000000000001E-3,null,"Auto & Truck Expenses",78904,7.9000000000000001E-2,null,"Auto & Truck Expenses",33524,3.4000000000000002E-2,null,"Auto & Truck Expenses",37344,3.6999999999999998E-2,null,"Auto & Truck Expenses",6480,6.0000000000000001E-3,null,"Auto & Truck Expenses",11598,1.2E-2,null,"Auto & Truck Expenses",17844,1.7999999999999999E-2,null,"Auto & Truck Expenses",14587,1.4999999999999999E-2,null,"Auto & Truck Expenses",66501,6.7000000000000004E-2,null,"Auto & Truck Expenses",14674,1.4999999999999999E-2,null,"Auto & Truck Expenses",23111,2.3E-2,null,"Auto & Truck Expenses",17284,1.7000000000000001E-2,null,"Auto & Truck Expenses",42810,4.2999999999999997E-2,null,"Auto & Truck Expenses",20572,2.1000000000000001E-2,null,"Auto & Truck Expenses",28721,2.9000000000000001E-2,null,"Auto & Truck Expenses",21271,2.1000000000000001E-2,null,"Auto & Truck Expenses",35758,3.5999999999999997E-2,null,"Auto & Truck Expenses",28483,2.8000000000000001E-2,null,"Auto & Truck Expenses",21771,2.1999999999999999E-2,null,"Auto & Truck Expenses",15176,1.4999999999999999E-2,null,"Auto & Truck Expenses",63682,6.4000000000000001E-2,null,"Auto & Truck Expenses",35572,3.5999999999999997E-2,null,"Auto & Truck Expenses",23173,2.3E-2,null,"Auto & Truck Expenses",65005,6.5000000000000002E-2,null,"Auto & Truck Expenses",12514,1.2999999999999999E-2,null,"Auto & Truck Expenses",10075,0.01,null,"Auto & Truck Expenses",25135,2.5000000000000001E-2,null,"Auto & Truck Expenses",2087,2E-3,null,"Auto & Truck Expenses",10486,0.01,null,"Auto & Truck Expenses",5437,5.0000000000000001E-3,null,"Auto & Truck Expenses",20241,0.02,null,"Auto & Truck Expenses",8364,8.0000000000000002E-3,null,"Auto & Truck Expenses",18637,1.9E-2,null,"Auto & Truck Expenses",11514,1.2E-2,null,"Auto & Truck Expenses",23866,2.4E-2,null,"Auto & Truck Expenses",66036,6.6000000000000003E-2,null,"Auto & Truck Expenses",32109,3.2000000000000001E-2,null,"Auto & Truck Expenses",38361,3.7999999999999999E-2,null,"Auto & Truck Expenses",34447,3.4000000000000002E-2,null,"Auto & Truck Expenses",28576,2.9000000000000001E-2,null,"Auto & Truck Expenses",52875,5.2999999999999999E-2]
[null,null,12,12,")","Health Services - Physicians",null,null,"Depreciation",21368,2.1000000000000001E-2,null,"Depreciation",70982,7.0999999999999994E-2,null,"Depreciation",17690,1.7999999999999999E-2,null,"Depreciation",33564,3.4000000000000002E-2,null,"Depreciation",18604,1.9E-2,null,"Depreciation",30069,0.03,null,"Depreciation",29175,2.9000000000000001E-2,null,"Depreciation",16907,1.7000000000000001E-2,null,"Depreciation",29463,2.9000000000000001E-2,null,"Depreciation",30378,0.03,null,"Depreciation",27151,2.7E-2,null,"Depreciation",14072,1.4E-2,null,"Depreciation",32929,3.3000000000000002E-2,null,"Depreciation",27740,2.8000000000000001E-2,null,"Depreciation",16722,1.7000000000000001E-2,null,"Depreciation",19437,1.9E-2,null,"Depreciation",37635,3.7999999999999999E-2,null,"Depreciation",12216,1.2E-2,null,"Depreciation",18670,1.9E-2,null,"Depreciation",46219,4.5999999999999999E-2,null,"Depreciation",20744,2.1000000000000001E-2,null,"Depreciation",37246,3.6999999999999998E-2,null,"Depreciation",41426,4.1000000000000002E-2,null,"Depreciation",36938,3.6999999999999998E-2,null,"Depreciation",33894,3.4000000000000002E-2,null,"Depreciation",72024,7.1999999999999995E-2,null,"Depreciation",38930,3.9E-2,null,"Depreciation",27030,2.7E-2,null,"Depreciation",15119,1.4999999999999999E-2,null,"Depreciation",19390,1.9E-2,null,"Depreciation",11417,1.0999999999999999E-2,null,"Depreciation",14518,1.4999999999999999E-2,null,"Depreciation",11835,1.2E-2,null,"Depreciation",9135,8.9999999999999993E-3,null,"Depreciation",12233,1.2E-2,null,"Depreciation",9836,0.01,null,"Depreciation",10473,0.01,null,"Depreciation",9670,0.01,null,"Depreciation",15475,1.4999999999999999E-2,null,"Depreciation",22682,2.3E-2,null,"Depreciation",14771,1.4999999999999999E-2,null,"Depreciation",38897,3.9E-2,null,"Depreciation",16772,1.7000000000000001E-2,null,"Depreciation",35401,3.5000000000000003E-2,null,"Depreciation",30317,0.03,null,"Depreciation",25256,2.5000000000000001E-2,null,"Depreciation",18171,1.7999999999999999E-2]
[null,null,13,13,")","Health Services - Podiatrists",null,null,"Employee Benefits",2431,2E-3,null,"Employee Benefits",1602,2E-3,null,"Employee Benefits",1198,1E-3,null,"Employee Benefits",1460,1E-3,null,"Employee Benefits",1841,2E-3,null,"Employee Benefits",1662,2E-3,null,"Employee Benefits",5321,5.0000000000000001E-3,null,"Employee Benefits",127,0,null,"Employee Benefits",1683,2E-3,null,"Employee Benefits",9783,0.01,null,"Employee Benefits",3529,4.0000000000000001E-3,null,"Employee Benefits",4746,5.0000000000000001E-3,null,"Employee Benefits",2132,2E-3,null,"Employee Benefits",1106,1E-3,null,"Employee Benefits",708,1E-3,null,"Employee Benefits",2014,2E-3,null,"Employee Benefits",2935,3.0000000000000001E-3,null,"Employee Benefits",842,1E-3,null,"Employee Benefits",853,1E-3,null,"Employee Benefits",12073,1.2E-2,null,"Employee Benefits",2248,2E-3,null,"Employee Benefits",781,1E-3,null,"Employee Benefits",2554,3.0000000000000001E-3,null,"Employee Benefits",3701,4.0000000000000001E-3,null,"Employee Benefits",1984,2E-3,null,"Employee Benefits",1866,2E-3,null,"Employee Benefits",1121,1E-3,null,"Employee Benefits",724,1E-3,null,"Employee Benefits",1724,2E-3,null,"Employee Benefits",632,1E-3,null,"Employee Benefits",536,1E-3,null,"Employee Benefits",3588,4.0000000000000001E-3,null,"Employee Benefits",1177,1E-3,null,"Employee Benefits",874,1E-3,null,"Employee Benefits",2994,3.0000000000000001E-3,null,"Employee Benefits",709,1E-3,null,"Employee Benefits",1386,1E-3,null,"Employee Benefits",752,1E-3,null,"Employee Benefits",1365,1E-3,null,"Employee Benefits",1359,1E-3,null,"Employee Benefits",1183,1E-3,null,"Employee Benefits",1881,2E-3,null,"Employee Benefits",606,1E-3,null,"Employee Benefits",5611,6.0000000000000001E-3,null,"Employee Benefits",9494,8.9999999999999993E-3,null,"Employee Benefits",661,1E-3,null,"Employee Benefits",1059,1E-3]
[null,null,14,14,")","Health Services - Psychiatrists",null,null,"Home Office Business Expenses",1671,2E-3,null,"Home Office Business Expenses",3326,3.0000000000000001E-3,null,"Home Office Business Expenses",2295,2E-3,null,"Home Office Business Expenses",3684,4.0000000000000001E-3,null,"Home Office Business Expenses",2454,2E-3,null,"Home Office Business Expenses",96515,9.7000000000000003E-2,null,"Home Office Business Expenses",290,0,null,"Home Office Business Expenses",21376,2.1000000000000001E-2,null,"Home Office Business Expenses",11793,1.2E-2,null,"Home Office Business Expenses",7918,8.0000000000000002E-3,null,"Home Office Business Expenses",281,0,null,"Home Office Business Expenses",1144,1E-3,null,"Home Office Business Expenses",12700,1.2999999999999999E-2,null,"Home Office Business Expenses",6156,6.0000000000000001E-3,null,"Home Office Business Expenses",8634,8.9999999999999993E-3,null,"Home Office Business Expenses",8544,8.9999999999999993E-3,null,"Home Office Business Expenses",2590,3.0000000000000001E-3,null,"Home Office Business Expenses",944,1E-3,null,"Home Office Business Expenses",3864,4.0000000000000001E-3,null,"Home Office Business Expenses",980,1E-3,null,"Home Office Business Expenses",5402,5.0000000000000001E-3,null,"Home Office Business Expenses",3986,4.0000000000000001E-3,null,"Home Office Business Expenses",734,1E-3,null,"Home Office Business Expenses",2251,2E-3,null,"Home Office Business Expenses",718,1E-3,null,"Home Office Business Expenses",99,0,null,"Home Office Business Expenses",7235,7.0000000000000001E-3,null,"Home Office Business Expenses",4491,4.0000000000000001E-3,null,"Home Office Business Expenses",559,1E-3,null,"Home Office Business Expenses",7893,8.0000000000000002E-3,null,"Home Office Business Expenses",715,1E-3,null,"Home Office Business Expenses",981,1E-3,null,"Home Office Business Expenses",3262,3.0000000000000001E-3,null,"Home Office Business Expenses",23,0,null,"Home Office Business Expenses",27,0,null,"Home Office Business Expenses",95,0,null,"Home Office Business Expenses",2025,2E-3,null,"Home Office Business Expenses",83,0,null,"Home Office Business Expenses",1926,2E-3,null,"Home Office Business Expenses",787,1E-3,null,"Home Office Business Expenses",3581,4.0000000000000001E-3,null,"Home Office Business Expenses",6284,6.0000000000000001E-3,null,"Home Office Business Expenses",8678,8.9999999999999993E-3,null,"Home Office Business Expenses",8146,8.0000000000000002E-3,null,"Home Office Business Expenses",11509,1.2E-2,null,"Home Office Business Expenses",12209,1.2E-2,null,"Home Office Business Expenses",11438,1.0999999999999999E-2]
[null,null,15,15,")","Health Services - Social Assistance",null,null,"Insurance",19165,1.9E-2,null,"Insurance",26348,2.5999999999999999E-2,null,"Insurance",12824,1.2999999999999999E-2,null,"Insurance",19437,1.9E-2,null,"Insurance",25166,2.5000000000000001E-2,null,"Insurance",8980,8.9999999999999993E-3,null,"Insurance",15594,1.6E-2,null,"Insurance",10235,0.01,null,"Insurance",11062,1.0999999999999999E-2,null,"Insurance",16884,1.7000000000000001E-2,null,"Insurance",13260,1.2999999999999999E-2,null,"Insurance",30669,3.1E-2,null,"Insurance",54981,5.5E-2,null,"Insurance",30880,3.1E-2,null,"Insurance",8394,8.0000000000000002E-3,null,"Insurance",8356,8.0000000000000002E-3,null,"Insurance",13368,1.2999999999999999E-2,null,"Insurance",6941,7.0000000000000001E-3,null,"Insurance",6698,7.0000000000000001E-3,null,"Insurance",16051,1.6E-2,null,"Insurance",10891,1.0999999999999999E-2,null,"Insurance",12655,1.2999999999999999E-2,null,"Insurance",17427,1.7000000000000001E-2,null,"Insurance",17312,1.7000000000000001E-2,null,"Insurance",17533,1.7999999999999999E-2,null,"Insurance",20550,2.1000000000000001E-2,null,"Insurance",14339,1.4E-2,null,"Insurance",10210,0.01,null,"Insurance",13052,1.2999999999999999E-2,null,"Insurance",5186,5.0000000000000001E-3,null,"Insurance",6805,7.0000000000000001E-3,null,"Insurance",7997,8.0000000000000002E-3,null,"Insurance",8410,8.0000000000000002E-3,null,"Insurance",4996,5.0000000000000001E-3,null,"Insurance",7602,8.0000000000000002E-3,null,"Insurance",6651,7.0000000000000001E-3,null,"Insurance",6247,6.0000000000000001E-3,null,"Insurance",6647,7.0000000000000001E-3,null,"Insurance",9767,0.01,null,"Insurance",13224,1.2999999999999999E-2,null,"Insurance",6687,7.0000000000000001E-3,null,"Insurance",16818,1.7000000000000001E-2,null,"Insurance",3998,4.0000000000000001E-3,null,"Insurance",17151,1.7000000000000001E-2,null,"Insurance",16694,1.7000000000000001E-2,null,"Insurance",2980,3.0000000000000001E-3,null,"Insurance",6835,7.0000000000000001E-3]
[null,null,16,16,")","Manufacturing - Apparel",null,null,"Interest Expense",8066,8.0000000000000002E-3,null,"Interest Expense",17736,1.7999999999999999E-2,null,"Interest Expense",6806,7.0000000000000001E-3,null,"Interest Expense",6573,7.0000000000000001E-3,null,"Interest Expense",13098,1.2999999999999999E-2,null,"Interest Expense",8784,8.9999999999999993E-3,null,"Interest Expense",13385,1.2999999999999999E-2,null,"Interest Expense",3784,4.0000000000000001E-3,null,"Interest Expense",4135,4.0000000000000001E-3,null,"Interest Expense",38277,3.7999999999999999E-2,null,"Interest Expense",14038,1.4E-2,null,"Interest Expense",5010,5.0000000000000001E-3,null,"Interest Expense",13884,1.4E-2,null,"Interest Expense",4944,5.0000000000000001E-3,null,"Interest Expense",1249,1E-3,null,"Interest Expense",3178,3.0000000000000001E-3,null,"Interest Expense",8406,8.0000000000000002E-3,null,"Interest Expense",9801,0.01,null,"Interest Expense",8935,8.9999999999999993E-3,null,"Interest Expense",11484,1.0999999999999999E-2,null,"Interest Expense",12743,1.2999999999999999E-2,null,"Interest Expense",12952,1.2999999999999999E-2,null,"Interest Expense",15714,1.6E-2,null,"Interest Expense",14431,1.4E-2,null,"Interest Expense",13069,1.2999999999999999E-2,null,"Interest Expense",97916,9.8000000000000004E-2,null,"Interest Expense",10965,1.0999999999999999E-2,null,"Interest Expense",9324,8.9999999999999993E-3,null,"Interest Expense",15400,1.4999999999999999E-2,null,"Interest Expense",5548,6.0000000000000001E-3,null,"Interest Expense",8590,8.9999999999999993E-3,null,"Interest Expense",5660,6.0000000000000001E-3,null,"Interest Expense",9968,0.01,null,"Interest Expense",6365,6.0000000000000001E-3,null,"Interest Expense",11554,1.2E-2,null,"Interest Expense",5422,5.0000000000000001E-3,null,"Interest Expense",3628,4.0000000000000001E-3,null,"Interest Expense",8509,8.9999999999999993E-3,null,"Interest Expense",8106,8.0000000000000002E-3,null,"Interest Expense",12169,1.2E-2,null,"Interest Expense",8216,8.0000000000000002E-3,null,"Interest Expense",6828,7.0000000000000001E-3,null,"Interest Expense",5507,6.0000000000000001E-3,null,"Interest Expense",8439,8.0000000000000002E-3,null,"Interest Expense",9779,0.01,null,"Interest Expense",2198,2E-3,null,"Interest Expense",1522,2E-3]
[null,null,17,17,")","Manufacturing - Fabricated Metal Products",null,null,"Legal & Professional Services",3766,4.0000000000000001E-3,null,"Legal & Professional Services",5165,5.0000000000000001E-3,null,"Legal & Professional Services",3858,4.0000000000000001E-3,null,"Legal & Professional Services",3542,4.0000000000000001E-3,null,"Legal & Professional Services",16155,1.6E-2,null,"Legal & Professional Services",4477,4.0000000000000001E-3,null,"Legal & Professional Services",9472,8.9999999999999993E-3,null,"Legal & Professional Services",7970,8.0000000000000002E-3,null,"Legal & Professional Services",17567,1.7999999999999999E-2,null,"Legal & Professional Services",7460,7.0000000000000001E-3,null,"Legal & Professional Services",6273,6.0000000000000001E-3,null,"Legal & Professional Services",11820,1.2E-2,null,"Legal & Professional Services",9972,0.01,null,"Legal & Professional Services",11374,1.0999999999999999E-2,null,"Legal & Professional Services",15777,1.6E-2,null,"Legal & Professional Services",7977,8.0000000000000002E-3,null,"Legal & Professional Services",3344,3.0000000000000001E-3,null,"Legal & Professional Services",2744,3.0000000000000001E-3,null,"Legal & Professional Services",2786,3.0000000000000001E-3,null,"Legal & Professional Services",3474,3.0000000000000001E-3,null,"Legal & Professional Services",4315,4.0000000000000001E-3,null,"Legal & Professional Services",4165,4.0000000000000001E-3,null,"Legal & Professional Services",15754,1.6E-2,null,"Legal & Professional Services",5279,5.0000000000000001E-3,null,"Legal & Professional Services",5080,5.0000000000000001E-3,null,"Legal & Professional Services",9734,0.01,null,"Legal & Professional Services",4434,4.0000000000000001E-3,null,"Legal & Professional Services",5829,6.0000000000000001E-3,null,"Legal & Professional Services",3162,3.0000000000000001E-3,null,"Legal & Professional Services",4716,5.0000000000000001E-3,null,"Legal & Professional Services",4138,4.0000000000000001E-3,null,"Legal & Professional Services",2987,3.0000000000000001E-3,null,"Legal & Professional Services",5439,5.0000000000000001E-3,null,"Legal & Professional Services",1820,2E-3,null,"Legal & Professional Services",2932,3.0000000000000001E-3,null,"Legal & Professional Services",2717,3.0000000000000001E-3,null,"Legal & Professional Services",3712,4.0000000000000001E-3,null,"Legal & Professional Services",2627,3.0000000000000001E-3,null,"Legal & Professional Services",4065,4.0000000000000001E-3,null,"Legal & Professional Services",5843,6.0000000000000001E-3,null,"Legal & Professional Services",4246,4.0000000000000001E-3,null,"Legal & Professional Services",6382,6.0000000000000001E-3,null,"Legal & Professional Services",7291,7.0000000000000001E-3,null,"Legal & Professional Services",16623,1.7000000000000001E-2,null,"Legal & Professional Services",11856,1.2E-2,null,"Legal & Professional Services",5754,6.0000000000000001E-3,null,"Legal & Professional Services",26740,2.7E-2]
[null,null,18,18,")","Manufacturing - Food Products",null,null,"Meals & Entertainment",2120,2E-3,null,"Meals & Entertainment",1006,1E-3,null,"Meals & Entertainment",1088,1E-3,null,"Meals & Entertainment",1954,2E-3,null,"Meals & Entertainment",4189,4.0000000000000001E-3,null,"Meals & Entertainment",2183,2E-3,null,"Meals & Entertainment",2228,2E-3,null,"Meals & Entertainment",7407,7.0000000000000001E-3,null,"Meals & Entertainment",5649,6.0000000000000001E-3,null,"Meals & Entertainment",1905,2E-3,null,"Meals & Entertainment",1568,2E-3,null,"Meals & Entertainment",2774,3.0000000000000001E-3,null,"Meals & Entertainment",1368,1E-3,null,"Meals & Entertainment",4153,4.0000000000000001E-3,null,"Meals & Entertainment",6016,6.0000000000000001E-3,null,"Meals & Entertainment",1209,1E-3,null,"Meals & Entertainment",1966,2E-3,null,"Meals & Entertainment",742,1E-3,null,"Meals & Entertainment",950,1E-3,null,"Meals & Entertainment",1178,1E-3,null,"Meals & Entertainment",2102,2E-3,null,"Meals & Entertainment",642,1E-3,null,"Meals & Entertainment",774,1E-3,null,"Meals & Entertainment",1222,1E-3,null,"Meals & Entertainment",892,1E-3,null,"Meals & Entertainment",2150,2E-3,null,"Meals & Entertainment",3251,3.0000000000000001E-3,null,"Meals & Entertainment",3497,3.0000000000000001E-3,null,"Meals & Entertainment",2232,2E-3,null,"Meals & Entertainment",4299,4.0000000000000001E-3,null,"Meals & Entertainment",1166,1E-3,null,"Meals & Entertainment",990,1E-3,null,"Meals & Entertainment",3765,4.0000000000000001E-3,null,"Meals & Entertainment",89,0,null,"Meals & Entertainment",1644,2E-3,null,"Meals & Entertainment",229,0,null,"Meals & Entertainment",2565,3.0000000000000001E-3,null,"Meals & Entertainment",472,0,null,"Meals & Entertainment",1785,2E-3,null,"Meals & Entertainment",759,1E-3,null,"Meals & Entertainment",1211,1E-3,null,"Meals & Entertainment",3360,3.0000000000000001E-3,null,"Meals & Entertainment",8488,8.0000000000000002E-3,null,"Meals & Entertainment",3592,4.0000000000000001E-3,null,"Meals & Entertainment",5929,6.0000000000000001E-3,null,"Meals & Entertainment",3956,4.0000000000000001E-3,null,"Meals & Entertainment",5695,6.0000000000000001E-3]
[null,null,19,19,")","Manufacturing - Furniture & Related Products",null,null,"Office Expense",3718,4.0000000000000001E-3,null,"Office Expense",4915,5.0000000000000001E-3,null,"Office Expense",3767,4.0000000000000001E-3,null,"Office Expense",4939,5.0000000000000001E-3,null,"Office Expense",31849,3.2000000000000001E-2,null,"Office Expense",5192,5.0000000000000001E-3,null,"Office Expense",19520,0.02,null,"Office Expense",13845,1.4E-2,null,"Office Expense",19241,1.9E-2,null,"Office Expense",4719,5.0000000000000001E-3,null,"Office Expense",12709,1.2999999999999999E-2,null,"Office Expense",17188,1.7000000000000001E-2,null,"Office Expense",34928,3.5000000000000003E-2,null,"Office Expense",23743,2.4E-2,null,"Office Expense",16013,1.6E-2,null,"Office Expense",4733,5.0000000000000001E-3,null,"Office Expense",5554,6.0000000000000001E-3,null,"Office Expense",5082,5.0000000000000001E-3,null,"Office Expense",8575,8.9999999999999993E-3,null,"Office Expense",4879,5.0000000000000001E-3,null,"Office Expense",12390,1.2E-2,null,"Office Expense",4918,5.0000000000000001E-3,null,"Office Expense",6241,6.0000000000000001E-3,null,"Office Expense",8050,8.0000000000000002E-3,null,"Office Expense",8830,8.9999999999999993E-3,null,"Office Expense",8664,8.9999999999999993E-3,null,"Office Expense",6875,7.0000000000000001E-3,null,"Office Expense",9825,0.01,null,"Office Expense",5102,5.0000000000000001E-3,null,"Office Expense",8216,8.0000000000000002E-3,null,"Office Expense",7733,8.0000000000000002E-3,null,"Office Expense",4917,5.0000000000000001E-3,null,"Office Expense",4797,5.0000000000000001E-3,null,"Office Expense",1087,1E-3,null,"Office Expense",2966,3.0000000000000001E-3,null,"Office Expense",1258,1E-3,null,"Office Expense",5973,6.0000000000000001E-3,null,"Office Expense",3124,3.0000000000000001E-3,null,"Office Expense",7713,8.0000000000000002E-3,null,"Office Expense",2508,3.0000000000000001E-3,null,"Office Expense",6280,6.0000000000000001E-3,null,"Office Expense",8858,8.9999999999999993E-3,null,"Office Expense",10982,1.0999999999999999E-2,null,"Office Expense",11259,1.0999999999999999E-2,null,"Office Expense",30016,0.03,null,"Office Expense",8652,8.9999999999999993E-3,null,"Office Expense",13107,1.2999999999999999E-2]
[null,null,20,20,")","Manufacturing - Machinery",null,null,"Retirement Plans",536,1E-3,null,"Retirement Plans",356,0,null,"Retirement Plans",212,0,null,"Retirement Plans",861,1E-3,null,"Retirement Plans",2521,3.0000000000000001E-3,null,"Retirement Plans",634,1E-3,null,"Retirement Plans",6553,7.0000000000000001E-3,null,"Retirement Plans",0,0,null,"Retirement Plans",819,1E-3,null,"Retirement Plans",507,1E-3,null,"Retirement Plans",3344,3.0000000000000001E-3,null,"Retirement Plans",4945,5.0000000000000001E-3,null,"Retirement Plans",7469,7.0000000000000001E-3,null,"Retirement Plans",3706,4.0000000000000001E-3,null,"Retirement Plans",1062,1E-3,null,"Retirement Plans",478,0,null,"Retirement Plans",1181,1E-3,null,"Retirement Plans",212,0,null,"Retirement Plans",944,1E-3,null,"Retirement Plans",882,1E-3,null,"Retirement Plans",1753,2E-3,null,"Retirement Plans",211,0,null,"Retirement Plans",122,0,null,"Retirement Plans",409,0,null,"Retirement Plans",231,0,null,"Retirement Plans",719,1E-3,null,"Retirement Plans",329,0,null,"Retirement Plans",295,0,null,"Retirement Plans",126,0,null,"Retirement Plans",171,0,null,"Retirement Plans",283,0,null,"Retirement Plans",278,0,null,"Retirement Plans",512,1E-3,null,"Retirement Plans",136,0,null,"Retirement Plans",258,0,null,"Retirement Plans",72,0,null,"Retirement Plans",1050,1E-3,null,"Retirement Plans",86,0,null,"Retirement Plans",712,1E-3,null,"Retirement Plans",218,0,null,"Retirement Plans",221,0,null,"Retirement Plans",615,1E-3,null,"Retirement Plans",668,1E-3,null,"Retirement Plans",1765,2E-3,null,"Retirement Plans",7740,8.0000000000000002E-3,null,"Retirement Plans",493,0,null,"Retirement Plans",750,1E-3]
[null,null,21,21,")","Manufacturing - Printing & Related Activities",null,null,"Rent - Equipment",8692,8.9999999999999993E-3,null,"Rent - Equipment",45154,4.4999999999999998E-2,null,"Rent - Equipment",2874,3.0000000000000001E-3,null,"Rent - Equipment",8230,8.0000000000000002E-3,null,"Rent - Equipment",10336,0.01,null,"Rent - Equipment",5890,6.0000000000000001E-3,null,"Rent - Equipment",5665,6.0000000000000001E-3,null,"Rent - Equipment",2294,2E-3,null,"Rent - Equipment",10682,1.0999999999999999E-2,null,"Rent - Equipment",12354,1.2E-2,null,"Rent - Equipment",5944,6.0000000000000001E-3,null,"Rent - Equipment",5692,6.0000000000000001E-3,null,"Rent - Equipment",6493,6.0000000000000001E-3,null,"Rent - Equipment",3953,4.0000000000000001E-3,null,"Rent - Equipment",6151,6.0000000000000001E-3,null,"Rent - Equipment",12787,1.2999999999999999E-2,null,"Rent - Equipment",16158,1.6E-2,null,"Rent - Equipment",898,1E-3,null,"Rent - Equipment",11637,1.2E-2,null,"Rent - Equipment",2528,3.0000000000000001E-3,null,"Rent - Equipment",19781,0.02,null,"Rent - Equipment",3689,4.0000000000000001E-3,null,"Rent - Equipment",12992,1.2999999999999999E-2,null,"Rent - Equipment",8938,8.9999999999999993E-3,null,"Rent - Equipment",15856,1.6E-2,null,"Rent - Equipment",4065,4.0000000000000001E-3,null,"Rent - Equipment",5846,6.0000000000000001E-3,null,"Rent - Equipment",15424,1.4999999999999999E-2,null,"Rent - Equipment",5652,6.0000000000000001E-3,null,"Rent - Equipment",4644,5.0000000000000001E-3,null,"Rent - Equipment",3246,3.0000000000000001E-3,null,"Rent - Equipment",2914,3.0000000000000001E-3,null,"Rent - Equipment",6955,7.0000000000000001E-3,null,"Rent - Equipment",3311,3.0000000000000001E-3,null,"Rent - Equipment",2828,3.0000000000000001E-3,null,"Rent - Equipment",4628,5.0000000000000001E-3,null,"Rent - Equipment",2191,2E-3,null,"Rent - Equipment",1573,2E-3,null,"Rent - Equipment",3514,4.0000000000000001E-3,null,"Rent - Equipment",7975,8.0000000000000002E-3,null,"Rent - Equipment",5195,5.0000000000000001E-3,null,"Rent - Equipment",10382,0.01,null,"Rent - Equipment",5572,6.0000000000000001E-3,null,"Rent - Equipment",7883,8.0000000000000002E-3,null,"Rent - Equipment",9253,8.9999999999999993E-3,null,"Rent - Equipment",4069,4.0000000000000001E-3,null,"Rent - Equipment",8125,8.0000000000000002E-3]
[null,null,22,22,")","Manufacturing - Wood Products",null,null,"Rent - Office & Business Property",3672,4.0000000000000001E-3,null,"Rent - Office & Business Property",2427,2E-3,null,"Rent - Office & Business Property",2515,3.0000000000000001E-3,null,"Rent - Office & Business Property",5971,6.0000000000000001E-3,null,"Rent - Office & Business Property",70817,7.0999999999999994E-2,null,"Rent - Office & Business Property",13562,1.4E-2,null,"Rent - Office & Business Property",35620,3.5999999999999997E-2,null,"Rent - Office & Business Property",24052,2.4E-2,null,"Rent - Office & Business Property",67389,6.7000000000000004E-2,null,"Rent - Office & Business Property",23340,2.3E-2,null,"Rent - Office & Business Property",64309,6.4000000000000001E-2,null,"Rent - Office & Business Property",32221,3.2000000000000001E-2,null,"Rent - Office & Business Property",79624,0.08,null,"Rent - Office & Business Property",38499,3.7999999999999999E-2,null,"Rent - Office & Business Property",65549,6.6000000000000003E-2,null,"Rent - Office & Business Property",51555,5.1999999999999998E-2,null,"Rent - Office & Business Property",19885,0.02,null,"Rent - Office & Business Property",27287,2.7E-2,null,"Rent - Office & Business Property",28771,2.9000000000000001E-2,null,"Rent - Office & Business Property",15797,1.6E-2,null,"Rent - Office & Business Property",32037,3.2000000000000001E-2,null,"Rent - Office & Business Property",12887,1.2999999999999999E-2,null,"Rent - Office & Business Property",53335,5.2999999999999999E-2,null,"Rent - Office & Business Property",30815,3.1E-2,null,"Rent - Office & Business Property",31008,3.1E-2,null,"Rent - Office & Business Property",19340,1.9E-2,null,"Rent - Office & Business Property",19479,1.9E-2,null,"Rent - Office & Business Property",91643,9.1999999999999998E-2,null,"Rent - Office & Business Property",11334,1.0999999999999999E-2,null,"Rent - Office & Business Property",14107,1.4E-2,null,"Rent - Office & Business Property",56580,5.7000000000000002E-2,null,"Rent - Office & Business Property",30545,3.1E-2,null,"Rent - Office & Business Property",48011,4.8000000000000001E-2,null,"Rent - Office & Business Property",15690,1.6E-2,null,"Rent - Office & Business Property",34365,3.4000000000000002E-2,null,"Rent - Office & Business Property",30627,3.1E-2,null,"Rent - Office & Business Property",24221,2.4E-2,null,"Rent - Office & Business Property",9788,0.01,null,"Rent - Office & Business Property",52269,5.1999999999999998E-2,null,"Rent - Office & Business Property",56358,5.6000000000000001E-2,null,"Rent - Office & Business Property",43050,4.2999999999999997E-2,null,"Rent - Office & Business Property",14421,1.4E-2,null,"Rent - Office & Business Property",16856,1.7000000000000001E-2,null,"Rent - Office & Business Property",19920,0.02,null,"Rent - Office & Business Property",34885,3.5000000000000003E-2,null,"Rent - Office & Business Property",9758,0.01,null,"Rent - Office & Business Property",18053,1.7999999999999999E-2]
[null,null,23,23,")","Other Services - Auto Oil Change, Car Washes & Related Services",null,null,"Repairs",6118,6.0000000000000001E-3,null,"Repairs",29160,2.9000000000000001E-2,null,"Repairs",4496,4.0000000000000001E-3,null,"Repairs",10324,0.01,null,"Repairs",14455,1.4E-2,null,"Repairs",15165,1.4999999999999999E-2,null,"Repairs",9018,8.9999999999999993E-3,null,"Repairs",7469,7.0000000000000001E-3,null,"Repairs",6120,6.0000000000000001E-3,null,"Repairs",17079,1.7000000000000001E-2,null,"Repairs",5907,6.0000000000000001E-3,null,"Repairs",5198,5.0000000000000001E-3,null,"Repairs",6759,7.0000000000000001E-3,null,"Repairs",7817,8.0000000000000002E-3,null,"Repairs",1682,2E-3,null,"Repairs",8474,8.0000000000000002E-3,null,"Repairs",10666,1.0999999999999999E-2,null,"Repairs",11016,1.0999999999999999E-2,null,"Repairs",7938,8.0000000000000002E-3,null,"Repairs",8329,8.0000000000000002E-3,null,"Repairs",11101,1.0999999999999999E-2,null,"Repairs",9847,0.01,null,"Repairs",18749,1.9E-2,null,"Repairs",8671,8.9999999999999993E-3,null,"Repairs",8898,8.9999999999999993E-3,null,"Repairs",46453,4.5999999999999999E-2,null,"Repairs",10758,1.0999999999999999E-2,null,"Repairs",10202,0.01,null,"Repairs",11612,1.2E-2,null,"Repairs",6089,6.0000000000000001E-3,null,"Repairs",4103,4.0000000000000001E-3,null,"Repairs",4793,5.0000000000000001E-3,null,"Repairs",6412,6.0000000000000001E-3,null,"Repairs",4621,5.0000000000000001E-3,null,"Repairs",6227,6.0000000000000001E-3,null,"Repairs",6159,6.0000000000000001E-3,null,"Repairs",4755,5.0000000000000001E-3,null,"Repairs",7003,7.0000000000000001E-3,null,"Repairs",6358,6.0000000000000001E-3,null,"Repairs",12404,1.2E-2,null,"Repairs",4141,4.0000000000000001E-3,null,"Repairs",16089,1.6E-2,null,"Repairs",3391,3.0000000000000001E-3,null,"Repairs",10924,1.0999999999999999E-2,null,"Repairs",6774,7.0000000000000001E-3,null,"Repairs",2843,3.0000000000000001E-3,null,"Repairs",2999,3.0000000000000001E-3]
[null,null,24,24,")","Other Services - Automotive Body Shops",null,null,"Supplies",21699,2.1999999999999999E-2,null,"Supplies",56449,5.6000000000000001E-2,null,"Supplies",19501,0.02,null,"Supplies",35296,3.5000000000000003E-2,null,"Supplies",33057,3.3000000000000002E-2,null,"Supplies",65517,6.6000000000000003E-2,null,"Supplies",48837,4.9000000000000002E-2,null,"Supplies",48420,4.8000000000000001E-2,null,"Supplies",19992,0.02,null,"Supplies",25850,2.5999999999999999E-2,null,"Supplies",14742,1.4999999999999999E-2,null,"Supplies",21602,2.1999999999999999E-2,null,"Supplies",40352,0.04,null,"Supplies",15573,1.6E-2,null,"Supplies",23586,2.4E-2,null,"Supplies",9197,8.9999999999999993E-3,null,"Supplies",20761,2.1000000000000001E-2,null,"Supplies",10200,0.01,null,"Supplies",45191,4.4999999999999998E-2,null,"Supplies",10240,0.01,null,"Supplies",29347,2.9000000000000001E-2,null,"Supplies",19705,0.02,null,"Supplies",35530,3.5999999999999997E-2,null,"Supplies",45822,4.5999999999999999E-2,null,"Supplies",26041,2.5999999999999999E-2,null,"Supplies",39958,0.04,null,"Supplies",30856,3.1E-2,null,"Supplies",43808,4.3999999999999997E-2,null,"Supplies",8737,8.9999999999999993E-3,null,"Supplies",16367,1.6E-2,null,"Supplies",9119,8.9999999999999993E-3,null,"Supplies",4161,4.0000000000000001E-3,null,"Supplies",5371,5.0000000000000001E-3,null,"Supplies",3142,3.0000000000000001E-3,null,"Supplies",7006,7.0000000000000001E-3,null,"Supplies",5850,6.0000000000000001E-3,null,"Supplies",13312,1.2999999999999999E-2,null,"Supplies",5241,5.0000000000000001E-3,null,"Supplies",11242,1.0999999999999999E-2,null,"Supplies",15941,1.6E-2,null,"Supplies",7670,8.0000000000000002E-3,null,"Supplies",37419,3.6999999999999998E-2,null,"Supplies",11051,1.0999999999999999E-2,null,"Supplies",29505,0.03,null,"Supplies",17510,1.7999999999999999E-2,null,"Supplies",16558,1.7000000000000001E-2,null,"Supplies",22809,2.3E-2]
[null,null,25,25,")","Other Services - Automotive Mechanical & Electrical Repair",null,null,"Taxes - Business & Payroll",9435,8.9999999999999993E-3,null,"Taxes - Business & Payroll",12213,1.2E-2,null,"Taxes - Business & Payroll",7735,8.0000000000000002E-3,null,"Taxes - Business & Payroll",11848,1.2E-2,null,"Taxes - Business & Payroll",21445,2.1000000000000001E-2,null,"Taxes - Business & Payroll",7550,8.0000000000000002E-3,null,"Taxes - Business & Payroll",25326,2.5000000000000001E-2,null,"Taxes - Business & Payroll",9021,8.9999999999999993E-3,null,"Taxes - Business & Payroll",11241,1.0999999999999999E-2,null,"Taxes - Business & Payroll",26271,2.5999999999999999E-2,null,"Taxes - Business & Payroll",24035,2.4E-2,null,"Taxes - Business & Payroll",16477,1.6E-2,null,"Taxes - Business & Payroll",15018,1.4999999999999999E-2,null,"Taxes - Business & Payroll",16038,1.6E-2,null,"Taxes - Business & Payroll",3575,4.0000000000000001E-3,null,"Taxes - Business & Payroll",27368,2.7E-2,null,"Taxes - Business & Payroll",19826,0.02,null,"Taxes - Business & Payroll",12396,1.2E-2,null,"Taxes - Business & Payroll",11051,1.0999999999999999E-2,null,"Taxes - Business & Payroll",26152,2.5999999999999999E-2,null,"Taxes - Business & Payroll",19864,0.02,null,"Taxes - Business & Payroll",17346,1.7000000000000001E-2,null,"Taxes - Business & Payroll",24344,2.4E-2,null,"Taxes - Business & Payroll",25483,2.5000000000000001E-2,null,"Taxes - Business & Payroll",23368,2.3E-2,null,"Taxes - Business & Payroll",69891,7.0000000000000007E-2,null,"Taxes - Business & Payroll",13624,1.4E-2,null,"Taxes - Business & Payroll",15027,1.4999999999999999E-2,null,"Taxes - Business & Payroll",21741,2.1999999999999999E-2,null,"Taxes - Business & Payroll",8340,8.0000000000000002E-3,null,"Taxes - Business & Payroll",20966,2.1000000000000001E-2,null,"Taxes - Business & Payroll",17782,1.7999999999999999E-2,null,"Taxes - Business & Payroll",15060,1.4999999999999999E-2,null,"Taxes - Business & Payroll",10104,0.01,null,"Taxes - Business & Payroll",15605,1.6E-2,null,"Taxes - Business & Payroll",15019,1.4999999999999999E-2,null,"Taxes - Business & Payroll",11888,1.2E-2,null,"Taxes - Business & Payroll",8985,8.9999999999999993E-3,null,"Taxes - Business & Payroll",21315,2.1000000000000001E-2,null,"Taxes - Business & Payroll",36822,3.6999999999999998E-2,null,"Taxes - Business & Payroll",18555,1.9E-2,null,"Taxes - Business & Payroll",13212,1.2999999999999999E-2,null,"Taxes - Business & Payroll",5784,6.0000000000000001E-3,null,"Taxes - Business & Payroll",22960,2.3E-2,null,"Taxes - Business & Payroll",15898,1.6E-2,null,"Taxes - Business & Payroll",8829,8.9999999999999993E-3,null,"Taxes - Business & Payroll",11864,1.2E-2]
[null,null,26,26,")","Other Services - Hotels & Inns",null,null,"Travel",6936,7.0000000000000001E-3,null,"Travel",3288,3.0000000000000001E-3,null,"Travel",1514,2E-3,null,"Travel",3163,3.0000000000000001E-3,null,"Travel",3885,4.0000000000000001E-3,null,"Travel",2524,3.0000000000000001E-3,null,"Travel",3874,4.0000000000000001E-3,null,"Travel",7792,8.0000000000000002E-3,null,"Travel",9855,0.01,null,"Travel",677,1E-3,null,"Travel",2665,3.0000000000000001E-3,null,"Travel",5600,6.0000000000000001E-3,null,"Travel",2850,3.0000000000000001E-3,null,"Travel",9239,8.9999999999999993E-3,null,"Travel",18925,1.9E-2,null,"Travel",4285,4.0000000000000001E-3,null,"Travel",4155,4.0000000000000001E-3,null,"Travel",2835,3.0000000000000001E-3,null,"Travel",1320,1E-3,null,"Travel",2984,3.0000000000000001E-3,null,"Travel",2010,2E-3,null,"Travel",782,1E-3,null,"Travel",739,1E-3,null,"Travel",4165,4.0000000000000001E-3,null,"Travel",1416,1E-3,null,"Travel",3075,3.0000000000000001E-3,null,"Travel",6461,6.0000000000000001E-3,null,"Travel",5868,6.0000000000000001E-3,null,"Travel",3390,3.0000000000000001E-3,null,"Travel",10457,0.01,null,"Travel",4804,5.0000000000000001E-3,null,"Travel",1843,2E-3,null,"Travel",5313,5.0000000000000001E-3,null,"Travel",153,0,null,"Travel",3917,4.0000000000000001E-3,null,"Travel",301,0,null,"Travel",3509,4.0000000000000001E-3,null,"Travel",1500,1E-3,null,"Travel",7235,7.0000000000000001E-3,null,"Travel",1826,2E-3,null,"Travel",3929,4.0000000000000001E-3,null,"Travel",8606,8.9999999999999993E-3,null,"Travel",14279,1.4E-2,null,"Travel",7368,7.0000000000000001E-3,null,"Travel",8407,8.0000000000000002E-3,null,"Travel",12211,1.2E-2,null,"Travel",3258,3.0000000000000001E-3]
[null,null,27,27,")","Other Services - Miscellaneous Repair Services",null,null,"Utilities",10426,0.01,null,"Utilities",13081,1.2999999999999999E-2,null,"Utilities",7233,7.0000000000000001E-3,null,"Utilities",11315,1.0999999999999999E-2,null,"Utilities",30798,3.1E-2,null,"Utilities",20812,2.1000000000000001E-2,null,"Utilities",17349,1.7000000000000001E-2,null,"Utilities",25903,2.5999999999999999E-2,null,"Utilities",21774,2.1999999999999999E-2,null,"Utilities",29936,0.03,null,"Utilities",18928,1.9E-2,null,"Utilities",14931,1.4999999999999999E-2,null,"Utilities",35360,3.5000000000000003E-2,null,"Utilities",16798,1.7000000000000001E-2,null,"Utilities",18392,1.7999999999999999E-2,null,"Utilities",29121,2.9000000000000001E-2,null,"Utilities",16231,1.6E-2,null,"Utilities",19403,1.9E-2,null,"Utilities",13557,1.4E-2,null,"Utilities",19486,1.9E-2,null,"Utilities",20847,2.1000000000000001E-2,null,"Utilities",13663,1.4E-2,null,"Utilities",30480,0.03,null,"Utilities",28479,2.8000000000000001E-2,null,"Utilities",26930,2.7E-2,null,"Utilities",85430,8.5000000000000006E-2,null,"Utilities",24132,2.4E-2,null,"Utilities",40078,0.04,null,"Utilities",15101,1.4999999999999999E-2,null,"Utilities",16620,1.7000000000000001E-2,null,"Utilities",16908,1.7000000000000001E-2,null,"Utilities",15849,1.6E-2,null,"Utilities",19417,1.9E-2,null,"Utilities",11731,1.2E-2,null,"Utilities",25324,2.5000000000000001E-2,null,"Utilities",20375,0.02,null,"Utilities",15536,1.6E-2,null,"Utilities",9194,8.9999999999999993E-3,null,"Utilities",20604,2.1000000000000001E-2,null,"Utilities",40641,4.1000000000000002E-2,null,"Utilities",15647,1.6E-2,null,"Utilities",16787,1.7000000000000001E-2,null,"Utilities",19109,1.9E-2,null,"Utilities",16415,1.6E-2,null,"Utilities",26409,2.5999999999999999E-2,null,"Utilities",12292,1.2E-2,null,"Utilities",14877,1.4999999999999999E-2]
[null,null,28,28,")","Other Services - Personal & Laundry Services",null,null,"Other Expenses",53789,5.3999999999999999E-2,null,"Other Expenses",75723,7.5999999999999998E-2,null,"Other Expenses",71531,7.1999999999999995E-2,null,"Other Expenses",82349,8.2000000000000003E-2,null,"Other Expenses",89320,8.8999999999999996E-2,null,"Other Expenses",151699,0.152,null,"Other Expenses",93148,9.2999999999999999E-2,null,"Other Expenses",112377,0.112,null,"Other Expenses",86584,8.6999999999999994E-2,null,"Other Expenses",155256,0.155,null,"Other Expenses",90120,0.09,null,"Other Expenses",91660,9.1999999999999998E-2,null,"Other Expenses",69421,6.9000000000000006E-2,null,"Other Expenses",68312,6.8000000000000005E-2,null,"Other Expenses",96093,9.6000000000000002E-2,null,"Other Expenses",99078,9.9000000000000005E-2,null,"Other Expenses",87711,8.7999999999999995E-2,null,"Other Expenses",27618,2.8000000000000001E-2,null,"Other Expenses",48955,4.9000000000000002E-2,null,"Other Expenses",24959,2.5000000000000001E-2,null,"Other Expenses",60591,6.0999999999999999E-2,null,"Other Expenses",75114,7.4999999999999997E-2,null,"Other Expenses",51851,5.1999999999999998E-2,null,"Other Expenses",63812,6.4000000000000001E-2,null,"Other Expenses",61693,6.2E-2,null,"Other Expenses",96122,9.6000000000000002E-2,null,"Other Expenses",67977,6.8000000000000005E-2,null,"Other Expenses",76154,7.5999999999999998E-2,null,"Other Expenses",43704,4.3999999999999997E-2,null,"Other Expenses",79647,0.08,null,"Other Expenses",29323,2.9000000000000001E-2,null,"Other Expenses",28031,2.8000000000000001E-2,null,"Other Expenses",63506,6.4000000000000001E-2,null,"Other Expenses",14345,1.4E-2,null,"Other Expenses",37823,3.7999999999999999E-2,null,"Other Expenses",27192,2.7E-2,null,"Other Expenses",32689,3.3000000000000002E-2,null,"Other Expenses",24002,2.4E-2,null,"Other Expenses",53919,5.3999999999999999E-2,null,"Other Expenses",52784,5.2999999999999999E-2,null,"Other Expenses",50366,0.05,null,"Other Expenses",84254,8.4000000000000005E-2,null,"Other Expenses",133747,0.13400000000000001,null,"Other Expenses",106833,0.107,null,"Other Expenses",97797,9.8000000000000004E-2,null,"Other Expenses",74075,7.3999999999999996E-2,null,"Other Expenses",44427,4.3999999999999997E-2]
[null,null,29,29,")","Retailing - Building Materials & Garden Supplies",null,null,"Total Expenses as % of Revenue",842124,0.84199999999999997,null,"Total Expenses as % of Revenue",858109,0.85799999999999998,null,"Total Expenses as % of Revenue",838224,0.83799999999999997,null,"Total Expenses as % of Revenue",757353,0.75700000000000001,null,"Total Expenses as % of Revenue",584079,0.58399999999999996,null,"Total Expenses as % of Revenue",539842,0.54,null,"Total Expenses as % of Revenue",622080,0.622,null,"Total Expenses as % of Revenue",498998,0.499,null,"Total Expenses as % of Revenue",457618,0.45800000000000002,null,"Total Expenses as % of Revenue",671897,0.67200000000000004,null,"Total Expenses as % of Revenue",731652,0.73199999999999998,null,"Total Expenses as % of Revenue",437726,0.438,null,"Total Expenses as % of Revenue",588608,0.58899999999999997,null,"Total Expenses as % of Revenue",405253,0.40500000000000003,null,"Total Expenses as % of Revenue",428987,0.42899999999999999,null,"Total Expenses as % of Revenue",875119,0.875,null,"Total Expenses as % of Revenue",813120,0.81299999999999994,null,"Total Expenses as % of Revenue",847921,0.84799999999999998,null,"Total Expenses as % of Revenue",781491,0.78100000000000003,null,"Total Expenses as % of Revenue",761718,0.76200000000000001,null,"Total Expenses as % of Revenue",817641,0.81799999999999995,null,"Total Expenses as % of Revenue",902072,0.90200000000000002,null,"Total Expenses as % of Revenue",836264,0.83599999999999997,null,"Total Expenses as % of Revenue",839785,0.84,null,"Total Expenses as % of Revenue",838439,0.83799999999999997,null,"Total Expenses as % of Revenue",843426,0.84299999999999997,null,"Total Expenses as % of Revenue",732158,0.73199999999999998,null,"Total Expenses as % of Revenue",636208,0.63600000000000001,null,"Total Expenses as % of Revenue",896050,0.89600000000000002,null,"Total Expenses as % of Revenue",761829,0.76200000000000001,null,"Total Expenses as % of Revenue",863056,0.86299999999999999,null,"Total Expenses as % of Revenue",876746,0.877,null,"Total Expenses as % of Revenue",868730,0.86899999999999999,null,"Total Expenses as % of Revenue",967197,0.96699999999999997,null,"Total Expenses as % of Revenue",898081,0.89800000000000002,null,"Total Expenses as % of Revenue",939532,0.94,null,"Total Expenses as % of Revenue",842782,0.84299999999999997,null,"Total Expenses as % of Revenue",936048,0.93600000000000005,null,"Total Expenses as % of Revenue",865438,0.86499999999999999,null,"Total Expenses as % of Revenue",891204,0.89100000000000001,null,"Total Expenses as % of Revenue",875434,0.875,null,"Total Expenses as % of Revenue",645234,0.64500000000000002,null,"Total Expenses as % of Revenue",693731,0.69399999999999995,null,"Total Expenses as % of Revenue",670811,0.67100000000000004,null,"Total Expenses as % of Revenue",545758,0.54600000000000004,null,"Total Expenses as % of Revenue",507771,0.50800000000000001,null,"Total Expenses as % of Revenue",392262,0.39200000000000002]
[null,null,30,30,")","Retailing - Catalog & Multi-level Marketing"]
[null,null,31,31,")","Retailing - Clothing & Accessories"]
[null,null,32,32,")","Retailing - Electronics & Appliances",null,null,"Average profitability & expense percentages for U.S. small businesses*",null,null,null,"Average profitability & expense percentages for U.S. small businesses*",null,null,null,"Average profitability & expense percentages for U.S. small businesses*",null,null,null,"Average profitability & expense percentages for U.S. small businesses*",null,null,null,"Average profitability & expense percentages for U.S. small businesses*",null,null,null,"Average profitability & expense percentages for U.S. small businesses*",null,null,null,"Average profitability & expense percentages for U.S. small businesses*",null,null,null,"Average profitability & expense percentages for U.S. small businesses*",null,null,null,"Average profitability & expense percentages for U.S. small businesses*",null,null,null,"Average profitability & expense percentages for U.S. small businesses*",null,null,null,"Average profitability & expense percentages for U.S. small businesses*",null,null,null,"Average profitability & expense percentages for U.S. small businesses*",null,null,null,"Average profitability & expense percentages for U.S. small businesses*",null,null,null,"Average profitability & expense percentages for U.S. small businesses*",null,null,null,"Average profitability & expense percentages for U.S. small businesses*",null,null,null,"Average profitability & expense percentages for U.S. small businesses*",null,null,null,"Average profitability & expense percentages for U.S. small businesses*",null,null,null,"Average profitability & expense percentages for U.S. small businesses*",null,null,null,"Average profitability & expense percentages for U.S. small businesses*",null,null,null,"Average profitability & expense percentages for U.S. small businesses*"]
[null,null,33,33,")","Retailing - Furniture & Home Furnishings",null,null,"Services - Educational (Excluding Schools)","$","%",null,"Services - Engineering Services","$","%",null,"Services - Information & Data Processing Services","$","%",null,"Services - Insurance Agencies & Brokerages","$","%",null,"Services - Legal Services","$","%",null,"Services - Management & Technical Consulting","$","%",null,"Services - Market Research & Public Opinion Polling","$","%",null,"Services - Other Business Services","$","%",null,"Services - Publishing Services","$","%",null,"Services - Real Estate Agents, Brokers & Managers","$","%",null,"Services - Scientific Research & Development","$","%",null,"Services - Specialized Design","$","%",null,"Services - Surveying & Mapping Services","$","%",null,"Services - Tax & Payroll Services","$","%",null,"Transportation - Couriers & Messengers","$","%",null,"Transportation - Local Trucking & Freight","$","%",null,"Transportation - Long-distance & Specialized Freight","$","%",null,"Transportation - Taxi & Limousine Services","$","%",null,"Wholesaling - Durable Goods","$","%",null,"Wholesaling - Nondurable Goods","$","%"]
[null,null,34,48,")","Retailing - Gasoline Stations"]
[null,null,35,49,")","Retailing - General Merchandise",null,null,"Total Revenue (Sales)",1000000,1,null,"Total Revenue (Sales)",1000000,1,null,"Total Revenue (Sales)",1000000,1,null,"Total Revenue (Sales)",1000000,1,null,"Total Revenue (Sales)",1000000,1,null,"Total Revenue (Sales)",1000000,1,null,"Total Revenue (Sales)",1000000,1,null,"Total Revenue (Sales)",1000000,1,null,"Total Revenue (Sales)",1000000,1,null,"Total Revenue (Sales)",1000000,1,null,"Total Revenue (Sales)",1000000,1,null,"Total Revenue (Sales)",1000000,1,null,"Total Revenue (Sales)",1000000,1,null,"Total Revenue (Sales)",1000000,1,null,"Total Revenue (Sales)",1000000,1,null,"Total Revenue (Sales)",1000000,1,null,"Total Revenue (Sales)",1000000,1,null,"Total Revenue (Sales)",1000000,1,null,"Total Revenue (Sales)",1000000,1,null,"Total Revenue (Sales)",1000000,1]
[null,null,36,50,")","Retailing - Grocery & Beverage Stores",null,null,"Total Expenses as % of Revenue",502716,0.503,null,"Total Expenses as % of Revenue",493593,0.49399999999999999,null,"Total Expenses as % of Revenue",534474,0.53400000000000003,null,"Total Expenses as % of Revenue",525676,0.52600000000000002,null,"Total Expenses as % of Revenue",515917,0.51600000000000001,null,"Total Expenses as % of Revenue",370603,0.371,null,"Total Expenses as % of Revenue",673862,0.67400000000000004,null,"Total Expenses as % of Revenue",610086,0.61,null,"Total Expenses as % of Revenue",691156,0.69099999999999995,null,"Total Expenses as % of Revenue",476220,0.47599999999999998,null,"Total Expenses as % of Revenue",404058,0.40400000000000003,null,"Total Expenses as % of Revenue",713232,0.71299999999999997,null,"Total Expenses as % of Revenue",691956,0.69199999999999995,null,"Total Expenses as % of Revenue",526421,0.52600000000000002,null,"Total Expenses as % of Revenue",672943,0.67300000000000004,null,"Total Expenses as % of Revenue",792223,0.79200000000000004,null,"Total Expenses as % of Revenue",816729,0.81699999999999995,null,"Total Expenses as % of Revenue",690404,0.69,null,"Total Expenses as % of Revenue",847732,0.84799999999999998,null,"Total Expenses as % of Revenue",849679,0.85]
[null,null,37,51,")","Retailing - Health & Personal Care Stores",null,null,"Net Income to Owner as % of Revenue",497284,0.497,null,"Net Income to Owner as % of Revenue",506407,0.50600000000000001,null,"Net Income to Owner as % of Revenue",465526,0.46600000000000003,null,"Net Income to Owner as % of Revenue",474324,0.47399999999999998,null,"Net Income to Owner as % of Revenue",484083,0.48399999999999999,null,"Net Income to Owner as % of Revenue",629397,0.629,null,"Net Income to Owner as % of Revenue",326138,0.32600000000000001,null,"Net Income to Owner as % of Revenue",389914,0.39,null,"Net Income to Owner as % of Revenue",308844,0.309,null,"Net Income to Owner as % of Revenue",523780,0.52400000000000002,null,"Net Income to Owner as % of Revenue",595942,0.59599999999999997,null,"Net Income to Owner as % of Revenue",286768,0.28699999999999998,null,"Net Income to Owner as % of Revenue",308044,0.308,null,"Net Income to Owner as % of Revenue",473579,0.47399999999999998,null,"Net Income to Owner as % of Revenue",327057,0.32700000000000001,null,"Net Income to Owner as % of Revenue",207777,0.20799999999999999,null,"Net Income to Owner as % of Revenue",183271,0.183,null,"Net Income to Owner as % of Revenue",309596,0.31,null,"Net Income to Owner as % of Revenue",152268,0.152,null,"Net Income to Owner as % of Revenue",150321,0.15]
[null,null,38,52,")","Retailing - Motor Vehicles & Parts"]
[null,null,39,53,")","Retailing - Other Retail Products",null,null,"Detail of Expenses (as % of Revenue)",null,null,null,"Detail of Expenses (as % of Revenue)",null,null,null,"Detail of Expenses (as % of Revenue)",null,null,null,"Detail of Expenses (as % of Revenue)",null,null,null,"Detail of Expenses (as % of Revenue)",null,null,null,"Detail of Expenses (as % of Revenue)",null,null,null,"Detail of Expenses (as % of Revenue)",null,null,null,"Detail of Expenses (as % of Revenue)",null,null,null,"Detail of Expenses (as % of Revenue)",null,null,null,"Detail of Expenses (as % of Revenue)",null,null,null,"Detail of Expenses (as % of Revenue)",null,null,null,"Detail of Expenses (as % of Revenue)",null,null,null,"Detail of Expenses (as % of Revenue)",null,null,null,"Detail of Expenses (as % of Revenue)",null,null,null,"Detail of Expenses (as % of Revenue)",null,null,null,"Detail of Expenses (as % of Revenue)",null,null,null,"Detail of Expenses (as % of Revenue)",null,null,null,"Detail of Expenses (as % of Revenue)",null,null,null,"Detail of Expenses (as % of Revenue)",null,null,null,"Detail of Expenses (as % of Revenue)"]
[null,null,40,54,")","Retailing - Restaurants & Drinking Places",null,null,"Cost of Goods Sold",49161,4.9000000000000002E-2,null,"Cost of Goods Sold",148958,0.14899999999999999,null,"Cost of Goods Sold",219366,0.219,null,"Cost of Goods Sold",26558,2.7E-2,null,"Cost of Goods Sold",51738,5.1999999999999998E-2,null,"Cost of Goods Sold",73977,7.3999999999999996E-2,null,"Cost of Goods Sold",176802,0.17699999999999999,null,"Cost of Goods Sold",182300,0.182,null,"Cost of Goods Sold",200802,0.20100000000000001,null,"Cost of Goods Sold",61882,6.2E-2,null,"Cost of Goods Sold",40298,0.04,null,"Cost of Goods Sold",389851,0.39,null,"Cost of Goods Sold",81375,8.1000000000000003E-2,null,"Cost of Goods Sold",48381,4.8000000000000001E-2,null,"Cost of Goods Sold",115862,0.11600000000000001,null,"Cost of Goods Sold",118348,0.11799999999999999,null,"Cost of Goods Sold",80126,0.08,null,"Cost of Goods Sold",2993,3.0000000000000001E-3,null,"Cost of Goods Sold",666501,0.66700000000000004,null,"Cost of Goods Sold",670586,0.67100000000000004]
[null,null,41,55,")","Retailing - Sporting Goods, Hobbies, Books & Music",null,null,"Salaries & Wages",51494,5.0999999999999997E-2,null,"Salaries & Wages",59289,5.8999999999999997E-2,null,"Salaries & Wages",23278,2.3E-2,null,"Salaries & Wages",95228,9.5000000000000001E-2,null,"Salaries & Wages",101945,0.10199999999999999,null,"Salaries & Wages",15775,1.6E-2,null,"Salaries & Wages",49666,0.05,null,"Salaries & Wages",73459,7.2999999999999995E-2,null,"Salaries & Wages",44765,4.4999999999999998E-2,null,"Salaries & Wages",13540,1.4E-2,null,"Salaries & Wages",8855,8.9999999999999993E-3,null,"Salaries & Wages",32354,3.2000000000000001E-2,null,"Salaries & Wages",140879,0.14099999999999999,null,"Salaries & Wages",87094,8.6999999999999994E-2,null,"Salaries & Wages",29358,2.9000000000000001E-2,null,"Salaries & Wages",57970,5.8000000000000003E-2,null,"Salaries & Wages",45949,4.5999999999999999E-2,null,"Salaries & Wages",3492,3.0000000000000001E-3,null,"Salaries & Wages",22699,2.3E-2,null,"Salaries & Wages",21057,2.1000000000000001E-2]
[null,null,42,56,")","Services - Administrative & Personnel Support",null,null,"Advertising",11547,1.2E-2,null,"Advertising",3682,4.0000000000000001E-3,null,"Advertising",10786,1.0999999999999999E-2,null,"Advertising",19855,0.02,null,"Advertising",14668,1.4999999999999999E-2,null,"Advertising",4542,5.0000000000000001E-3,null,"Advertising",2626,3.0000000000000001E-3,null,"Advertising",8755,8.9999999999999993E-3,null,"Advertising",15364,1.4999999999999999E-2,null,"Advertising",34197,3.4000000000000002E-2,null,"Advertising",1363,1E-3,null,"Advertising",5992,6.0000000000000001E-3,null,"Advertising",5980,6.0000000000000001E-3,null,"Advertising",10093,0.01,null,"Advertising",4778,5.0000000000000001E-3,null,"Advertising",2519,3.0000000000000001E-3,null,"Advertising",1242,1E-3,null,"Advertising",5256,5.0000000000000001E-3,null,"Advertising",6145,6.0000000000000001E-3,null,"Advertising",3482,3.0000000000000001E-3]
[null,null,43,57,")","Services - Advertising & Related Services",null,null,"Auto & Truck Expenses",52113,5.1999999999999998E-2,null,"Auto & Truck Expenses",35077,3.5000000000000003E-2,null,"Auto & Truck Expenses",34456,3.4000000000000002E-2,null,"Auto & Truck Expenses",49410,4.9000000000000002E-2,null,"Auto & Truck Expenses",22240,2.1999999999999999E-2,null,"Auto & Truck Expenses",26955,2.7E-2,null,"Auto & Truck Expenses",20873,2.1000000000000001E-2,null,"Auto & Truck Expenses",37542,3.7999999999999999E-2,null,"Auto & Truck Expenses",54594,5.5E-2,null,"Auto & Truck Expenses",66930,6.7000000000000004E-2,null,"Auto & Truck Expenses",36722,3.6999999999999998E-2,null,"Auto & Truck Expenses",33166,3.3000000000000002E-2,null,"Auto & Truck Expenses",99527,0.1,null,"Auto & Truck Expenses",39588,0.04,null,"Auto & Truck Expenses",314998,0.315,null,"Auto & Truck Expenses",172985,0.17299999999999999,null,"Auto & Truck Expenses",166318,0.16600000000000001,null,"Auto & Truck Expenses",119513,0.12,null,"Auto & Truck Expenses",24080,2.4E-2,null,"Auto & Truck Expenses",24590,2.5000000000000001E-2]
[null,null,44,58,")","Services - Architectural Services",null,null,"Depreciation",30313,0.03,null,"Depreciation",28729,2.9000000000000001E-2,null,"Depreciation",29766,0.03,null,"Depreciation",18289,1.7999999999999999E-2,null,"Depreciation",15588,1.6E-2,null,"Depreciation",18993,1.9E-2,null,"Depreciation",35867,3.5999999999999997E-2,null,"Depreciation",27304,2.7E-2,null,"Depreciation",27401,2.7E-2,null,"Depreciation",23804,2.4E-2,null,"Depreciation",10382,0.01,null,"Depreciation",38780,3.9E-2,null,"Depreciation",65123,6.5000000000000002E-2,null,"Depreciation",38916,3.9E-2,null,"Depreciation",11047,1.0999999999999999E-2,null,"Depreciation",84539,8.5000000000000006E-2,null,"Depreciation",99676,0.1,null,"Depreciation",28767,2.9000000000000001E-2,null,"Depreciation",12948,1.2999999999999999E-2,null,"Depreciation",11552,1.2E-2]
[null,null,45,59,")","Services - Certified Public Accountants",null,null,"Employee Benefits",1232,1E-3,null,"Employee Benefits",5075,5.0000000000000001E-3,null,"Employee Benefits",489,0,null,"Employee Benefits",4939,5.0000000000000001E-3,null,"Employee Benefits",3341,3.0000000000000001E-3,null,"Employee Benefits",935,1E-3,null,"Employee Benefits",4104,4.0000000000000001E-3,null,"Employee Benefits",2302,2E-3,null,"Employee Benefits",2545,3.0000000000000001E-3,null,"Employee Benefits",1242,1E-3,null,"Employee Benefits",1352,1E-3,null,"Employee Benefits",898,1E-3,null,"Employee Benefits",8724,8.9999999999999993E-3,null,"Employee Benefits",5141,5.0000000000000001E-3,null,"Employee Benefits",2,0,null,"Employee Benefits",922,1E-3,null,"Employee Benefits",999,1E-3,null,"Employee Benefits",42,0,null,"Employee Benefits",899,1E-3,null,"Employee Benefits",1065,1E-3]
[null,null,46,60,")","Services - Computer Programming & Systems Design",null,null,"Home Office Business Expenses",19797,0.02,null,"Home Office Business Expenses",11208,1.0999999999999999E-2,null,"Home Office Business Expenses",5559,6.0000000000000001E-3,null,"Home Office Business Expenses",4043,4.0000000000000001E-3,null,"Home Office Business Expenses",3762,4.0000000000000001E-3,null,"Home Office Business Expenses",12207,1.2E-2,null,"Home Office Business Expenses",10598,1.0999999999999999E-2,null,"Home Office Business Expenses",10706,1.0999999999999999E-2,null,"Home Office Business Expenses",8785,8.9999999999999993E-3,null,"Home Office Business Expenses",5775,6.0000000000000001E-3,null,"Home Office Business Expenses",29341,2.9000000000000001E-2,null,"Home Office Business Expenses",14561,1.4999999999999999E-2,null,"Home Office Business Expenses",13229,1.2999999999999999E-2,null,"Home Office Business Expenses",11821,1.2E-2,null,"Home Office Business Expenses",1290,1E-3,null,"Home Office Business Expenses",1384,1E-3,null,"Home Office Business Expenses",1455,1E-3,null,"Home Office Business Expenses",568,1E-3,null,"Home Office Business Expenses",3105,3.0000000000000001E-3,null,"Home Office Business Expenses",3502,4.0000000000000001E-3]
[null,null,47,61,")","Services - Drafting & Related Services",null,null,"Insurance",4202,4.0000000000000001E-3,null,"Insurance",13200,1.2999999999999999E-2,null,"Insurance",3439,3.0000000000000001E-3,null,"Insurance",11391,1.0999999999999999E-2,null,"Insurance",13396,1.2999999999999999E-2,null,"Insurance",3891,4.0000000000000001E-3,null,"Insurance",10400,0.01,null,"Insurance",9988,0.01,null,"Insurance",5596,6.0000000000000001E-3,null,"Insurance",5919,6.0000000000000001E-3,null,"Insurance",5110,5.0000000000000001E-3,null,"Insurance",4497,4.0000000000000001E-3,null,"Insurance",17336,1.7000000000000001E-2,null,"Insurance",9454,8.9999999999999993E-3,null,"Insurance",13946,1.4E-2,null,"Insurance",43828,4.3999999999999997E-2,null,"Insurance",42313,4.2000000000000003E-2,null,"Insurance",48058,4.8000000000000001E-2,null,"Insurance",5278,5.0000000000000001E-3,null,"Insurance",4666,5.0000000000000001E-3]
[null,null,48,62,")","Services - Educational (Excluding Schools)",null,null,"Interest Expense",2742,3.0000000000000001E-3,null,"Interest Expense",5120,5.0000000000000001E-3,null,"Interest Expense",2827,3.0000000000000001E-3,null,"Interest Expense",7373,7.0000000000000001E-3,null,"Interest Expense",6858,7.0000000000000001E-3,null,"Interest Expense",2904,3.0000000000000001E-3,null,"Interest Expense",3513,4.0000000000000001E-3,null,"Interest Expense",9530,0.01,null,"Interest Expense",9405,8.9999999999999993E-3,null,"Interest Expense",7977,8.0000000000000002E-3,null,"Interest Expense",5173,5.0000000000000001E-3,null,"Interest Expense",5150,5.0000000000000001E-3,null,"Interest Expense",24029,2.4E-2,null,"Interest Expense",14258,1.4E-2,null,"Interest Expense",2745,3.0000000000000001E-3,null,"Interest Expense",17020,1.7000000000000001E-2,null,"Interest Expense",25077,2.5000000000000001E-2,null,"Interest Expense",14631,1.4999999999999999E-2,null,"Interest Expense",5490,5.0000000000000001E-3,null,"Interest Expense",4473,4.0000000000000001E-3]
[null,null,49,63,")","Services - Engineering Services",null,null,"Legal & Professional Services",6358,6.0000000000000001E-3,null,"Legal & Professional Services",11578,1.2E-2,null,"Legal & Professional Services",5335,5.0000000000000001E-3,null,"Legal & Professional Services",6962,7.0000000000000001E-3,null,"Legal & Professional Services",18226,1.7999999999999999E-2,null,"Legal & Professional Services",13524,1.4E-2,null,"Legal & Professional Services",2745,3.0000000000000001E-3,null,"Legal & Professional Services",8381,8.0000000000000002E-3,null,"Legal & Professional Services",8368,8.0000000000000002E-3,null,"Legal & Professional Services",8850,8.9999999999999993E-3,null,"Legal & Professional Services",14988,1.4999999999999999E-2,null,"Legal & Professional Services",6444,6.0000000000000001E-3,null,"Legal & Professional Services",15683,1.6E-2,null,"Legal & Professional Services",7660,8.0000000000000002E-3,null,"Legal & Professional Services",4318,4.0000000000000001E-3,null,"Legal & Professional Services",4881,5.0000000000000001E-3,null,"Legal & Professional Services",4220,4.0000000000000001E-3,null,"Legal & Professional Services",2679,3.0000000000000001E-3,null,"Legal & Professional Services",2745,3.0000000000000001E-3,null,"Legal & Professional Services",2790,3.0000000000000001E-3]
[null,null,50,64,")","Services - Information & Data Processing Services",null,null,"Meals & Entertainment",7181,7.0000000000000001E-3,null,"Meals & Entertainment",4725,5.0000000000000001E-3,null,"Meals & Entertainment",5289,5.0000000000000001E-3,null,"Meals & Entertainment",10977,1.0999999999999999E-2,null,"Meals & Entertainment",5531,6.0000000000000001E-3,null,"Meals & Entertainment",9165,8.9999999999999993E-3,null,"Meals & Entertainment",6402,6.0000000000000001E-3,null,"Meals & Entertainment",5629,6.0000000000000001E-3,null,"Meals & Entertainment",5546,6.0000000000000001E-3,null,"Meals & Entertainment",10582,1.0999999999999999E-2,null,"Meals & Entertainment",13204,1.2999999999999999E-2,null,"Meals & Entertainment",4953,5.0000000000000001E-3,null,"Meals & Entertainment",2124,2E-3,null,"Meals & Entertainment",5207,5.0000000000000001E-3,null,"Meals & Entertainment",2218,2E-3,null,"Meals & Entertainment",7420,7.0000000000000001E-3,null,"Meals & Entertainment",25016,2.5000000000000001E-2,null,"Meals & Entertainment",3916,4.0000000000000001E-3,null,"Meals & Entertainment",3389,3.0000000000000001E-3,null,"Meals & Entertainment",3273,3.0000000000000001E-3]
[null,null,51,65,")","Services - Insurance Agencies & Brokerages",null,null,"Office Expense",14187,1.4E-2,null,"Office Expense",15470,1.4999999999999999E-2,null,"Office Expense",15036,1.4999999999999999E-2,null,"Office Expense",26910,2.7E-2,null,"Office Expense",28540,2.9000000000000001E-2,null,"Office Expense",14723,1.4999999999999999E-2,null,"Office Expense",56100,5.6000000000000001E-2,null,"Office Expense",13483,1.2999999999999999E-2,null,"Office Expense",21660,2.1999999999999999E-2,null,"Office Expense",22835,2.3E-2,null,"Office Expense",13758,1.4E-2,null,"Office Expense",14743,1.4999999999999999E-2,null,"Office Expense",13477,1.2999999999999999E-2,null,"Office Expense",25872,2.5999999999999999E-2,null,"Office Expense",7189,7.0000000000000001E-3,null,"Office Expense",4111,4.0000000000000001E-3,null,"Office Expense",3538,4.0000000000000001E-3,null,"Office Expense",5688,6.0000000000000001E-3,null,"Office Expense",4838,5.0000000000000001E-3,null,"Office Expense",4319,4.0000000000000001E-3]
[null,null,52,66,")","Services - Legal Services",null,null,"Retirement Plans",1231,1E-3,null,"Retirement Plans",1564,2E-3,null,"Retirement Plans",475,0,null,"Retirement Plans",2349,2E-3,null,"Retirement Plans",2699,3.0000000000000001E-3,null,"Retirement Plans",688,1E-3,null,"Retirement Plans",1142,1E-3,null,"Retirement Plans",1952,2E-3,null,"Retirement Plans",1491,1E-3,null,"Retirement Plans",1035,1E-3,null,"Retirement Plans",900,1E-3,null,"Retirement Plans",281,0,null,"Retirement Plans",337,0,null,"Retirement Plans",1064,1E-3,null,"Retirement Plans",3,0,null,"Retirement Plans",651,1E-3,null,"Retirement Plans",147,0,null,"Retirement Plans",1420,1E-3,null,"Retirement Plans",277,0,null,"Retirement Plans",324,0]
[null,null,53,67,")","Services - Management & Technical Consulting",null,null,"Rent - Equipment",3313,3.0000000000000001E-3,null,"Rent - Equipment",3360,3.0000000000000001E-3,null,"Rent - Equipment",2945,3.0000000000000001E-3,null,"Rent - Equipment",11043,1.0999999999999999E-2,null,"Rent - Equipment",7435,7.0000000000000001E-3,null,"Rent - Equipment",5604,6.0000000000000001E-3,null,"Rent - Equipment",16066,1.6E-2,null,"Rent - Equipment",6675,7.0000000000000001E-3,null,"Rent - Equipment",8735,8.9999999999999993E-3,null,"Rent - Equipment",7807,8.0000000000000002E-3,null,"Rent - Equipment",1730,2E-3,null,"Rent - Equipment",9418,8.9999999999999993E-3,null,"Rent - Equipment",9205,8.9999999999999993E-3,null,"Rent - Equipment",6974,7.0000000000000001E-3,null,"Rent - Equipment",15249,1.4999999999999999E-2,null,"Rent - Equipment",25523,2.5999999999999999E-2,null,"Rent - Equipment",31009,3.1E-2,null,"Rent - Equipment",102154,0.10199999999999999,null,"Rent - Equipment",1503,2E-3,null,"Rent - Equipment",3164,3.0000000000000001E-3]
[null,null,54,68,")","Services - Market Research & Public Opinion Polling",null,null,"Rent - Office & Business Property",48545,4.9000000000000002E-2,null,"Rent - Office & Business Property",14929,1.4999999999999999E-2,null,"Rent - Office & Business Property",26283,2.5999999999999999E-2,null,"Rent - Office & Business Property",32172,3.2000000000000001E-2,null,"Rent - Office & Business Property",40141,0.04,null,"Rent - Office & Business Property",11029,1.0999999999999999E-2,null,"Rent - Office & Business Property",11848,1.2E-2,null,"Rent - Office & Business Property",16831,1.7000000000000001E-2,null,"Rent - Office & Business Property",18055,1.7999999999999999E-2,null,"Rent - Office & Business Property",12216,1.2E-2,null,"Rent - Office & Business Property",3893,4.0000000000000001E-3,null,"Rent - Office & Business Property",17347,1.7000000000000001E-2,null,"Rent - Office & Business Property",29409,2.9000000000000001E-2,null,"Rent - Office & Business Property",22284,2.1999999999999999E-2,null,"Rent - Office & Business Property",5444,5.0000000000000001E-3,null,"Rent - Office & Business Property",5524,6.0000000000000001E-3,null,"Rent - Office & Business Property",5825,6.0000000000000001E-3,null,"Rent - Office & Business Property",21538,2.1999999999999999E-2,null,"Rent - Office & Business Property",9606,0.01,null,"Rent - Office & Business Property",11506,1.2E-2]
[null,null,55,69,")","Services - Other Business Services",null,null,"Repairs",6816,7.0000000000000001E-3,null,"Repairs",3332,3.0000000000000001E-3,null,"Repairs",1216,1E-3,null,"Repairs",5297,5.0000000000000001E-3,null,"Repairs",3918,4.0000000000000001E-3,null,"Repairs",1748,2E-3,null,"Repairs",2579,3.0000000000000001E-3,null,"Repairs",6662,7.0000000000000001E-3,null,"Repairs",2328,2E-3,null,"Repairs",5640,6.0000000000000001E-3,null,"Repairs",1265,1E-3,null,"Repairs",2651,3.0000000000000001E-3,null,"Repairs",5801,6.0000000000000001E-3,null,"Repairs",11234,1.0999999999999999E-2,null,"Repairs",13310,1.2999999999999999E-2,null,"Repairs",62794,6.3E-2,null,"Repairs",74543,7.4999999999999997E-2,null,"Repairs",41603,4.2000000000000003E-2,null,"Repairs",4372,4.0000000000000001E-3,null,"Repairs",4244,4.0000000000000001E-3]
[null,null,56,70,")","Services - Publishing Services",null,null,"Supplies",27232,2.7E-2,null,"Supplies",13369,1.2999999999999999E-2,null,"Supplies",13112,1.2999999999999999E-2,null,"Supplies",12805,1.2999999999999999E-2,null,"Supplies",9717,0.01,null,"Supplies",13146,1.2999999999999999E-2,null,"Supplies",17630,1.7999999999999999E-2,null,"Supplies",36661,3.6999999999999998E-2,null,"Supplies",14688,1.4999999999999999E-2,null,"Supplies",12952,1.2999999999999999E-2,null,"Supplies",7144,7.0000000000000001E-3,null,"Supplies",35425,3.5000000000000003E-2,null,"Supplies",20566,2.1000000000000001E-2,null,"Supplies",21287,2.1000000000000001E-2,null,"Supplies",18010,1.7999999999999999E-2,null,"Supplies",13465,1.2999999999999999E-2,null,"Supplies",16801,1.7000000000000001E-2,null,"Supplies",7371,7.0000000000000001E-3,null,"Supplies",6773,7.0000000000000001E-3,null,"Supplies",13321,1.2999999999999999E-2]
[null,null,57,71,")","Services - Real Estate Agents, Brokers & Managers",null,null,"Taxes - Business & Payroll",6592,7.0000000000000001E-3,null,"Taxes - Business & Payroll",8691,8.9999999999999993E-3,null,"Taxes - Business & Payroll",9506,0.01,null,"Taxes - Business & Payroll",12070,1.2E-2,null,"Taxes - Business & Payroll",13618,1.4E-2,null,"Taxes - Business & Payroll",4230,4.0000000000000001E-3,null,"Taxes - Business & Payroll",6455,6.0000000000000001E-3,null,"Taxes - Business & Payroll",14501,1.4999999999999999E-2,null,"Taxes - Business & Payroll",8050,8.0000000000000002E-3,null,"Taxes - Business & Payroll",5723,6.0000000000000001E-3,null,"Taxes - Business & Payroll",3247,3.0000000000000001E-3,null,"Taxes - Business & Payroll",6697,7.0000000000000001E-3,null,"Taxes - Business & Payroll",19969,0.02,null,"Taxes - Business & Payroll",12796,1.2999999999999999E-2,null,"Taxes - Business & Payroll",4190,4.0000000000000001E-3,null,"Taxes - Business & Payroll",19621,0.02,null,"Taxes - Business & Payroll",22884,2.3E-2,null,"Taxes - Business & Payroll",10688,1.0999999999999999E-2,null,"Taxes - Business & Payroll",6401,6.0000000000000001E-3,null,"Taxes - Business & Payroll",5915,6.0000000000000001E-3]
[null,null,58,72,")","Services - Scientific Research & Development",null,null,"Travel",42766,4.2999999999999997E-2,null,"Travel",28397,2.8000000000000001E-2,null,"Travel",12566,1.2999999999999999E-2,null,"Travel",12525,1.2999999999999999E-2,null,"Travel",8355,8.0000000000000002E-3,null,"Travel",38054,3.7999999999999999E-2,null,"Travel",64142,6.4000000000000001E-2,null,"Travel",15726,1.6E-2,null,"Travel",18187,1.7999999999999999E-2,null,"Travel",8256,8.0000000000000002E-3,null,"Travel",90565,9.0999999999999998E-2,null,"Travel",9110,8.9999999999999993E-3,null,"Travel",647,1E-3,null,"Travel",11232,1.0999999999999999E-2,null,"Travel",8126,8.0000000000000002E-3,null,"Travel",5234,5.0000000000000001E-3,null,"Travel",8196,8.0000000000000002E-3,null,"Travel",1790,2E-3,null,"Travel",9894,0.01,null,"Travel",6044,6.0000000000000001E-3]
[null,null,59,73,")","Services - Specialized Design",null,null,"Utilities",18490,1.7999999999999999E-2,null,"Utilities",13599,1.4E-2,null,"Utilities",17615,1.7999999999999999E-2,null,"Utilities",28463,2.8000000000000001E-2,null,"Utilities",21144,2.1000000000000001E-2,null,"Utilities",15152,1.4999999999999999E-2,null,"Utilities",34306,3.4000000000000002E-2,null,"Utilities",20302,0.02,null,"Utilities",17131,1.7000000000000001E-2,null,"Utilities",20441,0.02,null,"Utilities",17511,1.7999999999999999E-2,null,"Utilities",17538,1.7999999999999999E-2,null,"Utilities",25549,2.5999999999999999E-2,null,"Utilities",29052,2.9000000000000001E-2,null,"Utilities",10898,1.0999999999999999E-2,null,"Utilities",11520,1.2E-2,null,"Utilities",11784,1.2E-2,null,"Utilities",12349,1.2E-2,null,"Utilities",9794,0.01,null,"Utilities",10553,1.0999999999999999E-2]
[null,null,60,74,")","Services - Surveying & Mapping Services",null,null,"Other Expenses",97404,9.7000000000000003E-2,null,"Other Expenses",64241,6.4000000000000001E-2,null,"Other Expenses",95130,9.5000000000000001E-2,null,"Other Expenses",127016,0.127,null,"Other Expenses",123057,0.123,null,"Other Expenses",83359,8.3000000000000004E-2,null,"Other Expenses",139999,0.14000000000000001,null,"Other Expenses",101397,0.10100000000000001,null,"Other Expenses",197660,0.19800000000000001,null,"Other Expenses",138617,0.13900000000000001,null,"Other Expenses",97259,9.7000000000000003E-2,null,"Other Expenses",63376,6.3E-2,null,"Other Expenses",92987,9.2999999999999999E-2,null,"Other Expenses",107011,0.107,null,"Other Expenses",89962,0.09,null,"Other Expenses",131963,0.13200000000000001,null,"Other Expenses",149609,0.15,null,"Other Expenses",255889,0.25600000000000001,null,"Other Expenses",40997,4.1000000000000002E-2,null,"Other Expenses",39252,3.9E-2]
[null,null,61,75,")","Services - Tax & Payroll Services",null,null,"Total Expenses as % of Revenue",502716,0.503,null,"Total Expenses as % of Revenue",493593,0.49399999999999999,null,"Total Expenses as % of Revenue",534474,0.53400000000000003,null,"Total Expenses as % of Revenue",525676,0.52600000000000002,null,"Total Expenses as % of Revenue",515917,0.51600000000000001,null,"Total Expenses as % of Revenue",370603,0.371,null,"Total Expenses as % of Revenue",673862,0.67400000000000004,null,"Total Expenses as % of Revenue",610086,0.61,null,"Total Expenses as % of Revenue",691156,0.69099999999999995,null,"Total Expenses as % of Revenue",476220,0.47599999999999998,null,"Total Expenses as % of Revenue",404058,0.40400000000000003,null,"Total Expenses as % of Revenue",713232,0.71299999999999997,null,"Total Expenses as % of Revenue",691956,0.69199999999999995,null,"Total Expenses as % of Revenue",526421,0.52600000000000002,null,"Total Expenses as % of Revenue",672943,0.67300000000000004,null,"Total Expenses as % of Revenue",792223,0.79200000000000004,null,"Total Expenses as % of Revenue",816729,0.81699999999999995,null,"Total Expenses as % of Revenue",690404,0.69,null,"Total Expenses as % of Revenue",847732,0.84799999999999998,null,"Total Expenses as % of Revenue",849679,0.85]
[null,null,62,76,")","Transportation - Couriers & Messengers"]
[null,null,63,77,")","Transportation - Local Trucking & Freight"]
[null,null,64,78,")","Transportation - Long-distance & Specialized Freight"]
[null,null,65,79,")","Transportation - Taxi & Limousine Services"]
[null,null,66,80,")","Wholesaling - Durable Goods"]
[null,null,67,81,")","Wholesaling – Non-durable Goods"]
[]
[]
[null,null,null,null,null,"*The preceding results report nationwide averages for profitable, one owner unincorporated businesses. Net income to Owner is prior to federal or state income taxes, and excludes any compensation or other benefits such as health insurance and retirement plan contributions made by the business on behalf of the owner."]

{"sheet":"Industry Analysis","index":1,"n_rows":36,"n_cols":11,"rows_kept":36,"cut":false,"hidden":false,"merged":[[38,3,38,10]]}
[]
[]
[]
[]
[null,null,null,"Category","Actual",null,"Industry",null,"Variance",null,"Trend"]
[null,null,null,"Services - Publishing Services","$","%","$","%","$","%","Your Business vs."]
[null,null,null,56,null,null,null,null,null,null,"Your Industry"]
[null,null,null,"Total Revenue (Sales)",2010000,{"$f":"E8/E8","v":1},{"$f":"E8","v":2010000},1,{"$f":"E8-G8","v":0},0,"N/A"]
[null,null,null,"Total Expenses as % of Revenue",1663353,{"$f":"E9/$E$8","v":0.82753880597014928},{"$f":"$E$8*H9","v":1388910},0.69099999999999995,274443,0.13653880597014934,{"$f":"IF(I9<=0,\"Positive Trend\",\"Negative Trend\")","v":"Negative Trend"}]
[null,null,null,"Net Income to Owner as % of Revenue",346647,{"$f":"E10/$E$8","v":0.17246119402985075},{"$f":"$E$8*H10","v":621090},0.309,-274443,-0.13653880597014925,{"$f":"IF(I10>=0,\"Positive Trend\",\"Negative Trend\")","v":"Negative Trend"}]
[]
[null,null,null,"Detail of Expenses (as % of Revenue)"]
[null,null,null,"Cost of Goods Sold",945000,{"$f":"E13/$E$8","v":0.47014925373134331},{"$f":"$E$8*H13","v":404010},0.20100000000000001,{"$f":"IF(E13=0,0,E13-G13)","v":540990},{"$f":"IF(F13=0,0,F13-H13)","v":0.2691492537313433},{"$f":"IF(I13<=0,\"Positive Trend\",\"Negative Trend\")","v":"Negative Trend"}]
[null,null,null,"Salaries & Wages",190000,9.4527363184079602E-2,{"$f":"$E$8*H14","v":90450},4.4999999999999998E-2,99550,4.9527363184079604E-2,{"$f":"IF(I14<=0,\"Positive Trend\",\"Negative Trend\")","v":"Negative Trend"}]
[null,null,null,"Advertising",50000,2.4875621890547265E-2,30150,1.4999999999999999E-2,19850,9.8756218905472655E-3,"Negative Trend"]
[null,null,null,"Auto & Truck Expenses",30000,1.4925373134328358E-2,110550,5.5E-2,-80550,-4.0074626865671641E-2,"Positive Trend"]
[null,null,null,"Depreciation",5000,2.4875621890547263E-3,54270,2.7E-2,-49270,-2.4512437810945274E-2,"Positive Trend"]
[null,null,null,"Employee Benefits",3000,1.4925373134328358E-3,6030,3.0000000000000001E-3,-3030,-1.5074626865671642E-3,"Positive Trend"]
[null,null,null,"Home Office Business Expenses",1000,4.9751243781094524E-4,18090,8.9999999999999993E-3,-17090,-8.5024875621890535E-3,"Positive Trend"]
[null,null,null,"Insurance",1000,4.9751243781094524E-4,12060,6.0000000000000001E-3,-11060,-5.5024875621890552E-3,"Positive Trend"]
[null,null,null,"Interest Expense",2133,1.0611940298507463E-3,18090,8.9999999999999993E-3,-15957,-7.9388059701492528E-3,"Positive Trend"]
[null,null,null,"Legal & Professional Services",11000,5.4726368159203984E-3,16080,8.0000000000000002E-3,-5080,-2.5273631840796017E-3,"Positive Trend"]
[null,null,null,"Meals & Entertainment",4000,1.990049751243781E-3,12060,6.0000000000000001E-3,-8060,-4.0099502487562187E-3,"Positive Trend"]
[null,null,null,"Office Expense",6000,2.9850746268656717E-3,44220,2.1999999999999999E-2,-38220,-1.9014925373134327E-2,"Positive Trend"]
[null,null,null,"Retirement Plans",1000,4.9751243781094524E-4,2010,1E-3,-1010,-5.0248756218905478E-4,"Positive Trend"]
[null,null,null,"Rent - Equipment",3000,1.4925373134328358E-3,18090,8.9999999999999993E-3,-15090,-7.5074626865671637E-3,"Positive Trend"]
[null,null,null,"Rent - Office & Business Property",1000,4.9751243781094524E-4,36180,1.7999999999999999E-2,-35180,-1.7502487562189053E-2,"Positive Trend"]
[null,null,null,"Repairs",1000,4.9751243781094524E-4,4020,2E-3,-3020,-1.5024875621890547E-3,"Positive Trend"]
[null,null,null,"Supplies",1000,4.9751243781094524E-4,30150,1.4999999999999999E-2,-29150,-1.4502487562189054E-2,"Positive Trend"]
[null,null,null,"Taxes - Business & Payroll",1000,4.9751243781094524E-4,16080,8.0000000000000002E-3,-15080,-7.5024875621890552E-3,"Positive Trend"]
[null,null,null,"Travel",6000,2.9850746268656717E-3,36180,1.7999999999999999E-2,-30180,-1.5014925373134327E-2,"Positive Trend"]
[null,null,null,"Utilities",0,0,34170,1.7000000000000001E-2,{"$f":"IF(E32=0,0,E32-G32)","v":0},{"$f":"IF(F32=0,0,F32-H32)","v":0},{"$f":"IF(I32<=0,\"Positive Trend\",\"Negative Trend\")","v":"Positive Trend"}]
[null,null,null,"Other Expenses",0,0,{"$f":"$E$8*H33","v":397980},0.19800000000000001,{"$f":"IF(E33=0,0,E33-G33)","v":0},{"$f":"IF(F33=0,0,F33-H33)","v":0},"Positive Trend"]
[null,null,null,"Total Expenses as % of Revenue",{"$f":"SUM(E13:E33)","v":1262133},0.6279268656716418,1388910,0.69099999999999995,{"$f":"E34-G34","v":-126777},{"$f":"F34-H34","v":-6.3073134328358149E-2},"Positive Trend"]
[null,null,null,null,null,null,null,null,"Number of Positives",null,{"$f":"COUNTIF(K9:K34,\"Positive Trend\")","v":19}]
[null,null,null,null,null,null,null,null,"Number of Negatives",null,{"$f":"COUNTIF(K9:K34,\"Negative Trend\")","v":5}]